Transaction Date,Cost Centre,Cost Centre (T),Merchant Name,Gross Amount,Account,Account (T),MCC,MCC Description
05/04/2022,MA69,Facilities Management,Central Event Hire Ltd,382.91,H10,Equipment Purchase,7394,Equipment Rental and Leasing Services
06/04/2022,MB30,Planning Development Control,Hm Land Registry - Online,6,J46,Other Expenses,9399,Government Services
06/04/2022,MA69,Facilities Management,Laithwaites Wine,728.03,H30,Catering (taxable benefit),5921,"Package Stores, Beer, Wine, Liquor"
06/04/2022,MA69,Facilities Management,Cutting Edge Fabrics,223.07,J46,Other Expenses,5949,"Fabric, Needlework, Piece Goods, and Sewing Stores"
06/04/2022,MB30,Planning Development Control,Hm Land Registry - Online,6,J46,Other Expenses,9399,Government Services
06/04/2022,MA69,Facilities Management,Makro Self Service Readin,359.34,H30,Catering (taxable benefit),5300,Wholesale Clubs
07/04/2022,MA69,Facilities Management,Windsor And Eton Brewery,321.89,H30,Catering (taxable benefit),5921,"Package Stores, Beer, Wine, Liquor"
07/04/2022,MA69,Facilities Management,Laithwaites Wine,551.28,H30,Catering (taxable benefit),5921,"Package Stores, Beer, Wine, Liquor"
08/04/2022,MB30,Planning Development Control,Reading Borough Counci,8.1,J46,Other Expenses,7523,Automobile Parking Lots and Garages
08/04/2022,LB18,Libraries-Maidenhead,Amazon.Co.Uk*2e7tf3ci4,8.99,H10,Equipment Purchase,5969,Other Direct Marketing-Other Direct Marketers
08/04/2022,MA69,Facilities Management,Poundland Ltd,16.5,H10,Equipment Purchase,5310,Discount Stores
08/04/2022,MB30,Planning Development Control,Reading Borough Counci,8.1,J46,Other Expenses,7523,Automobile Parking Lots and Garages
08/04/2022,MA69,Facilities Management,Sainsburys S/mkts,10.8,H31,Catering (non-taxable benefit),5411,Grocery Stores and Supermarkets
11/04/2022,AJ22,S E Library Management System,Se Online Web,45.1,G40,Staff Public Transport,4112,Passenger Railways
11/04/2022,EC37,PPS Independent Support,Contstant Contact,18,J11,Corporate Subscriptions,5968,Direct Marketing Continuity Subscription Merchants
11/04/2022,AJ22,S E Library Management System,Se Online Web,132.8,G40,Staff Public Transport,4112,Passenger Railways
11/04/2022,AJ22,S E Library Management System,Se Online Web,88.7,G40,Staff Public Transport,4112,Passenger Railways
11/04/2022,SVHM,Homelessness,Travelodge Gb0000,102.48,K77,Client Temporary Accommodation,3615,Travelodge
12/04/2022,MH31,Commercial & Residential Services,Cartridge Save,85.67,H22,Materials,5111,"Stationery, Office Supplies and Writing Paper"
12/04/2022,PB10,Planning Development Control,Royal Town Planning,321,A77,Professional Subscriptions,8398,"Organizations, Charitable and Social Service"
12/04/2022,MH33,Environmental Protection,R B W M,11,F61,Service Charges,9311,Tax Payments
12/04/2022,SVRS,Rough Sleepers,Currys Online,328.99,H20,Client Personal Needs,5732,Electronic Sales
12/04/2022,SVHM,Homelessness,Travelodge Gb0000,41.8,K77,Client Temporary Accommodation,3615,Travelodge
13/04/2022,MY37,Corporate I.T. - Networks,Amznmktplace,22.08,H91,Hardware,5999,Miscellaneous and Specialty Retail Stores
13/04/2022,LB18,Libraries-Maidenhead,Ascot Hardware,7.99,H10,Equipment Purchase,5310,Discount Stores
13/04/2022,SVHM,Homelessness,Travelodge Gb0000,334.48,K77,Client Temporary Accommodation,3615,Travelodge
14/04/2022,SVHM,Homelessness,Travelodge Gb0000,571.07,K77,Client Temporary Accommodation,3615,Travelodge
14/04/2022,SVHM,Homelessness,Travelodge Gb0000,91.78,K77,Client Temporary Accommodation,3615,Travelodge
19/04/2022,SVHM,Homelessness,Travelodge Gb0000,827.03,K77,Client Temporary Accommodation,3615,Travelodge
19/04/2022,SVRS,Rough Sleepers,Highstreetvouchers,25,H20,Client Personal Needs,8641,"Associations-Civic, Social, and Fraternal"
19/04/2022,SVRS,Rough Sleepers,Chiltern Raliways,31.8,H20,Client Personal Needs,4789,Other Transportation Services
19/04/2022,ML15,Public Relations,Axate,2,A77,Professional Subscriptions,5968,Direct Marketing Continuity Subscription Merchants
19/04/2022,MH01,Director of Operations & Customer Services,Redactive,654,J20,Conference Fees,7399,Other Business Services
19/04/2022,ML15,Public Relations,Contstant Contact,297,A77,Professional Subscriptions,5968,Direct Marketing Continuity Subscription Merchants
21/04/2022,LT80,Guildhall-Meetings & Events,Www.Hannalbalbrown.Com,50.64,H30,Catering (taxable benefit),5921,"Package Stores, Beer, Wine, Liquor"
21/04/2022,MY37,Corporate I.T. - Networks,Amazon.Co.Uk*2p88z1cv4,4.89,H91,Hardware,5969,Other Direct Marketing-Other Direct Marketers
21/04/2022,MB30,Planning Development Control,Hm Land Registry - Online,6,J46,Other Expenses,9399,Government Services
21/04/2022,MB30,Planning Development Control,Hm Land Registry - Online,6,J46,Other Expenses,9399,Government Services
21/04/2022,MJ20,Civic & Mayoral Costs,Laithwaites Wine,622.8,J46,Other Expenses,5921,"Package Stores, Beer, Wine, Liquor"
25/04/2022,MJ30,Members Expenses,Zoom.Gbp,83.93,J11,Corporate Subscriptions,5968,Direct Marketing Continuity Subscription Merchants
25/04/2022,LC02,Leisure Centres Retained Costs,Sepd Plc,"1,438.60",J46,Other Expenses,4900,"Utilities - Electric, Gas, Sanitary & Water"
25/04/2022,LT80,Guildhall-Meetings & Events,Laithwaites Wine,"2,129.99",H30,Catering (taxable benefit),5921,"Package Stores, Beer, Wine, Liquor"
25/04/2022,MT40,Deputy Director of Law & Strategy,Vilcol,20,J42,Legal Fees,7392,"Consulting, Management, and PR Services"
25/04/2022,MT40,Deputy Director of Law & Strategy,Vilcol,100,J42,Legal Fees,7392,"Consulting, Management, and PR Services"
26/04/2022,LT80,Guildhall-Meetings & Events,Sainsburys S/mkts,12.05,H31,Catering (non-taxable benefit),5411,Grocery Stores and Supermarkets
26/04/2022,LB80,Libraries-Replacement System,Amazon Prime*2p8698pn4,79,J46,Other Expenses,5968,Direct Marketing Continuity Subscription Merchants
26/04/2022,LT80,Guildhall-Meetings & Events,T K Maxx,4.78,J46,Other Expenses,5331,Variety Stores
26/04/2022,PB10,Planning Development Control,Royal Town Planning,321,A77,Professional Subscriptions,8398,"Organizations, Charitable and Social Service"
26/04/2022,LB18,Libraries-Maidenhead,Amznmktplace,17.99,J46,Other Expenses,5999,Miscellaneous and Specialty Retail Stores
27/04/2022,MT49,Community Warden Scheme,Amazon.Co.Uk*2p9ok3md4,24.48,H10,Equipment Purchase,5969,Other Direct Marketing-Other Direct Marketers
27/04/2022,CLG8,Pop Up Libraries-Equipment,Amznmktplace,13.7,Q50,Purchase of Furniture & Equipment (Capital Only),5999,Miscellaneous and Specialty Retail Stores
27/04/2022,CLG8,Pop Up Libraries-Equipment,Amznmktplace,38.97,Q50,Purchase of Furniture & Equipment (Capital Only),5999,Miscellaneous and Specialty Retail Stores
28/04/2022,ML15,Public Relations,Www.Ioic.Org.Uk,222,A77,Professional Subscriptions,8299,Other Schools and Educational Services
28/04/2022,SVRS,Rough Sleepers,Argos Ltd,22.99,H20,Client Personal Needs,5310,Discount Stores
28/04/2022,PX01,Trading Standards,Screwfix Dir Ltd,180.48,H10,Equipment Purchase,5211,Lumber & Building Materials Stores
28/04/2022,PX01,Trading Standards,Screwfix Dir Ltd,9.99,H10,Equipment Purchase,5211,Lumber & Building Materials Stores
28/04/2022,SVRS,Rough Sleepers,Argos Ltd,1,H20,Client Personal Needs,5310,Discount Stores
29/04/2022,SVST,Housing Strategy,Ricardo-Aea Ltd,192,J46,Other Expenses,7392,"Consulting, Management, and PR Services"
29/04/2022,SCCM,Capacity Management,Makro Self Service Readin,181.5,H30,Catering (taxable benefit),5300,Wholesale Clubs
03/05/2022,SVRS,Rough Sleepers,Highstreetvouchers,25,H20,Client Personal Needs,8641,"Associations-Civic, Social, and Fraternal"
03/05/2022,SVST,Housing Strategy,Ao Retail Limited,129,J46,Other Expenses,5722,Household Appliance Stores
03/05/2022,EC37,PPS Independent Support,Patreon* Membership,4.82,J11,Corporate Subscriptions,5815,"Digital Goods - Media, Books, Movies, Music"
03/05/2022,EC37,PPS Independent Support,Amznmktplace,8.95,H45,Stationery,5999,Miscellaneous and Specialty Retail Stores
03/05/2022,SVST,Housing Strategy,Ao Retail Limited,129,J46,Other Expenses,5722,Household Appliance Stores
03/05/2022,EC37,PPS Independent Support,Amznmktplace,15.48,H45,Stationery,5999,Miscellaneous and Specialty Retail Stores
03/05/2022,EC37,PPS Independent Support,Foreign Exchange Fee,0.13,J81,Bank Charges,,
03/05/2022,SVRS,Rough Sleepers,Abri Group Ltd,114.35,H20,Client Personal Needs,6513,Real Estate Managers - Rentals
03/05/2022,LB18,Libraries-Maidenhead,Canva* 03409-13077351,99.99,J44,Marketing/Promotions,7333,"Commercial Art, Graphics, Photography "
03/05/2022,SVHM,Homelessness,Travelodge Gb0000,742.41,K77,Client Temporary Accommodation,3615,Travelodge
04/05/2022,LB80,Libraries-Replacement System,Contstant Contact,627.9,H92,Software,5968,Direct Marketing Continuity Subscription Merchants
04/05/2022,PB17,Planning Policy,Rtpi,53.33,A77,Professional Subscriptions,7997,"Clubs Country Clubs, Membership"
04/05/2022,LB18,Libraries-Maidenhead,Amazon.Co.Uk*2d5ul7jp4,12.18,H10,Equipment Purchase,5969,Other Direct Marketing-Other Direct Marketers
04/05/2022,LB18,Libraries-Maidenhead,Amznmktplace,25.95,H10,Equipment Purchase,5999,Miscellaneous and Specialty Retail Stores
04/05/2022,MA69,Facilities Management,Amazon Prime*2d8so13t4,7.99,H10,Equipment Purchase,5968,Direct Marketing Continuity Subscription Merchants
04/05/2022,MA51,Democratic Services,Rio Deli Maidenhead,6.76,H35,Refreshments,5812,"Eating Places, Restaurants"
04/05/2022,MH01,Director of Operations & Customer Services,Chiltern Raliways,29.2,G40,Staff Public Transport,4789,Other Transportation Services
04/05/2022,MB30,Planning Development Control,Reading Borough Counci,8.1,J46,Other Expenses,7523,Automobile Parking Lots and Garages
05/05/2022,SVST,Housing Strategy,Argos Ltd,181.95,H10,Equipment Purchase,5310,Discount Stores
06/05/2022,LT80,Guildhall-Meetings & Events,Makro Self Service Readin,62.01,H30,Catering (taxable benefit),5300,Wholesale Clubs
06/05/2022,MY74,Learning and Development,Easy Book Training,954,A70,Training - Non-Taxable Benefit,8244,"Schools, Business and Secretarial"
09/05/2022,SVHM,Homelessness,Travelodge Gb0000,42.82,K77,Client Temporary Accommodation,3615,Travelodge
09/05/2022,LB18,Libraries-Maidenhead,Www.Theworks.Co.Uk,40,J46,Other Expenses,5310,Discount Stores
09/05/2022,SVST,Housing Strategy,Ao Retail Limited,182,H10,Equipment Purchase,5722,Household Appliance Stores
09/05/2022,LB18,Libraries-Maidenhead,Rymanbusiness.Com,81.29,J46,Other Expenses,5399,Miscellaneous General Merchandise
10/05/2022,LT80,Guildhall-Meetings & Events,Waitrose 194,75,J46,Other Expenses,5411,Grocery Stores and Supermarkets
10/05/2022,AJ22,S E Library Management System,Se Online Web,-87.2,G40,Staff Public Transport,4112,Passenger Railways
10/05/2022,EC37,PPS Independent Support,Contstant Contact,18,J11,Corporate Subscriptions,5968,Direct Marketing Continuity Subscription Merchants
10/05/2022,NA11,Town Hall- Operations,Amazon Prime,-7.99,H10,Equipment Purchase,5968,Direct Marketing Continuity Subscription Merchants
10/05/2022,LT80,Guildhall-Meetings & Events,Laithwaites Wine,224.88,H30,Catering (taxable benefit),5921,"Package Stores, Beer, Wine, Liquor"
11/05/2022,AJ22,S E Library Management System,Se Online Web,-43.6,G40,Staff Public Transport,4112,Passenger Railways
11/05/2022,MJ20,Civic & Mayoral Costs,Gwr Maidenhead Sst,32.8,G39,Client Public Transport,4112,Passenger Railways
12/05/2022,MY74,Learning and Development,Cieem.Net,75,A70,Training - Non-Taxable Benefit,8398,"Organizations, Charitable and Social Service"
12/05/2022,EC37,PPS Independent Support,Amazon.Co.Uk*2d8gv3ww4,20.15,H45,Stationery,5969,Other Direct Marketing-Other Direct Marketers
12/05/2022,MY74,Learning and Development,Cieem.Net,10,A70,Training - Non-Taxable Benefit,8398,"Organizations, Charitable and Social Service"
12/05/2022,MY74,Learning and Development,Cieem.Net,120,A70,Training - Non-Taxable Benefit,8398,"Organizations, Charitable and Social Service"
12/05/2022,MY74,Learning and Development,Cieem.Net,120,A70,Training - Non-Taxable Benefit,8398,"Organizations, Charitable and Social Service"
13/05/2022,MY74,Learning and Development,Cieem.Net,75,A70,Training - Non-Taxable Benefit,8398,"Organizations, Charitable and Social Service"
13/05/2022,SVHM,Homelessness,Travelodge Gb0000,673.1,K77,Client Temporary Accommodation,3615,Travelodge
13/05/2022,LB18,Libraries-Maidenhead,Www.Theworks.Co.Uk,180,J47,Events & Activities,5310,Discount Stores
13/05/2022,SVRS,Rough Sleepers,Abri Group Ltd,115.22,H20,Client Personal Needs,6513,Real Estate Managers - Rentals
13/05/2022,SVHM,Homelessness,Travelodge Gb0000,649.63,K77,Client Temporary Accommodation,3615,Travelodge
14/05/2022,ML15,Public Relations,Contstant Contact,297,A77,Professional Subscriptions,5968,Direct Marketing Continuity Subscription Merchants
15/05/2022,LB18,Libraries-Maidenhead,Amznmktplace,40.2,J47,Events & Activities,5999,Miscellaneous and Specialty Retail Stores
16/05/2022,ML15,Public Relations,Axate,2,A77,Professional Subscriptions,5968,Direct Marketing Continuity Subscription Merchants
16/05/2022,SVST,Housing Strategy,Argos Ltd,201.95,H10,Equipment Purchase,5310,Discount Stores
16/05/2022,SVST,Housing Strategy,Argos Ltd,220,H10,Equipment Purchase,5310,Discount Stores
17/05/2022,MA69,Facilities Management,Screwfix Dir Ltd,8.99,H10,Equipment Purchase,5211,Lumber & Building Materials Stores
17/05/2022,SVHM,Homelessness,Travelodge Gb0000,"1,143.21",K77,Client Temporary Accommodation,3615,Travelodge
17/05/2022,MJ20,Civic & Mayoral Costs,Powerbell Services,101.96,G10,Vehicle Servicing & Repairs,7538,Automotive Service Shops
18/05/2022,MY74,Learning and Development,Llg Enterprises Ltd,738,A70,Training - Non-Taxable Benefit,8249,"Schools, Trade and Vocational"
18/05/2022,MY74,Learning and Development,Llg Enterprises Ltd,492,A70,Training - Non-Taxable Benefit,8249,"Schools, Trade and Vocational"
18/05/2022,MY74,Learning and Development,Llg Enterprises Ltd,138,A70,Training - Non-Taxable Benefit,8249,"Schools, Trade and Vocational"
18/05/2022,MY74,Learning and Development,Llg Enterprises Ltd,138,A70,Training - Non-Taxable Benefit,8249,"Schools, Trade and Vocational"
18/05/2022,LT80,Guildhall-Meetings & Events,Hannibal Brown Wine Se,"2,315.50",H30,Catering (taxable benefit),5921,"Package Stores, Beer, Wine, Liquor"
18/05/2022,MY74,Learning and Development,Llg Enterprises Ltd,138,A70,Training - Non-Taxable Benefit,8249,"Schools, Trade and Vocational"
18/05/2022,MY74,Learning and Development,Llg Enterprises Ltd,246,A70,Training - Non-Taxable Benefit,8249,"Schools, Trade and Vocational"
18/05/2022,LT80,Guildhall-Meetings & Events,Robert Dyas Holdng Ltd,35.98,H10,Equipment Purchase,5251,Hardware Stores
18/05/2022,MY74,Learning and Development,Llg Enterprises Ltd,738,A70,Training - Non-Taxable Benefit,8249,"Schools, Trade and Vocational"
19/05/2022,SVST,Housing Strategy,Argos Ltd,150,H10,Equipment Purchase,5310,Discount Stores
19/05/2022,MA30,HR Strategic,S00806737rao Ukvi,200,J46,Other Expenses,9399,Government Services
19/05/2022,MB01,Centralised Stationery,Stationeryu,117.39,H45,Stationery,5943,"Office, School Supply, and Stationery Stores"
19/05/2022,MB01,Centralised Stationery,Ryman,15.99,H45,Stationery,5943,"Office, School Supply, and Stationery Stores"
21/05/2022,LB18,Libraries-Maidenhead,Amznmktplace,10.99,J46,Other Expenses,5999,Miscellaneous and Specialty Retail Stores
21/05/2022,LT80,Guildhall-Meetings & Events,Unit 4 Brewery Tap,10,H30,Catering (taxable benefit),5813,"Bars, Cocktail Lounges, Discotheques, Nightclubs"
23/05/2022,MB30,Planning Development Control,Trainline.Com,72.3,G39,Client Public Transport,4112,Passenger Railways
23/05/2022,SVHM,Homelessness,Travelodge Gb0000,587.44,K77,Client Temporary Accommodation,3615,Travelodge
23/05/2022,MB30,Planning Development Control,Www.Gwr.Com,317,G39,Client Public Transport,4112,Passenger Railways
24/05/2022,LB18,Libraries-Maidenhead,Amazon.Co.Uk*255ce1i84,24.02,H10,Equipment Purchase,5969,Other Direct Marketing-Other Direct Marketers
24/05/2022,MJ30,Members Expenses,Zoom.Gbp,83.93,J11,Corporate Subscriptions,5968,Direct Marketing Continuity Subscription Merchants
24/05/2022,MH01,Director of Operations & Customer Services,Jurys Inn Liverpool Front,227.7,J20,Conference Fees,7011,"Hotels, Motels, Resorts"
24/05/2022,ML15,Public Relations,Www.Cipr.Co.Uk,"1,440.00",A77,Professional Subscriptions,8699,"Organizations, Membership"
24/05/2022,SVRS,Rough Sleepers,Www.Rooms.Life,200,H20,Client Personal Needs,5499,Miscellaneous Food Stores & Convenience Stores
24/05/2022,SVRS,Rough Sleepers,Travelodge Gb0000,50.98,K77,Client Temporary Accommodation,3615,Travelodge
24/05/2022,MA30,HR Strategic,S00806737iny Ukvi,200,J46,Other Expenses,9399,Government Services
24/05/2022,LB18,Libraries-Maidenhead,The Works,68,H10,Equipment Purchase,5310,Discount Stores
24/05/2022,ML15,Public Relations,Amznmktplace,13.86,H22,Materials,5999,Miscellaneous and Specialty Retail Stores
25/05/2022,MB30,Planning Development Control,Swindon Stn,10,J46,Other Expenses,7523,Automobile Parking Lots and Garages
25/05/2022,LT80,Guildhall-Meetings & Events,Vidaxl Uk,299.99,H10,Equipment Purchase,5099,Other Durable Goods
25/05/2022,LB18,Libraries-Maidenhead,Amznmktplace,12,H10,Equipment Purchase,5999,Miscellaneous and Specialty Retail Stores
25/05/2022,ML15,Public Relations,Www.Tablecloths.Co.Uk,"1,105.44",H22,Materials,5719,Miscellaneous House Furnishing Specialty Shops
26/05/2022,MB30,Planning Development Control,Trainline.Com,-24.6,G39,Client Public Transport,4112,Passenger Railways
26/05/2022,LR10,Braywick Nature Centre,Homebase Ltd,182.65,H10,Equipment Purchase,5200,Home Supply Warehouse Stores
26/05/2022,LT80,Guildhall-Meetings & Events,Laithwaites Wine,239.76,H30,Catering (taxable benefit),5921,"Package Stores, Beer, Wine, Liquor"
27/05/2022,HE01,"MD/Strategic Director A,C & H",Sainsburys Smkts,36,H35,Refreshments,5411,Grocery Stores and Supermarkets
27/05/2022,SVHM,Homelessness,Travelodge Gb0000,367.15,K77,Client Temporary Accommodation,3615,Travelodge
27/05/2022,SVRS,Rough Sleepers,New Oscar,288,K77,Client Temporary Accommodation,7011,"Hotels, Motels, Resorts"
27/05/2022,HE01,"MD/Strategic Director A,C & H",Marks&spencer Plc,55,H35,Refreshments,5411,Grocery Stores and Supermarkets
27/05/2022,MT49,Community Warden Scheme,Careline 08001013333,256.8,A77,Professional Subscriptions,5999,Miscellaneous and Specialty Retail Stores
27/05/2022,LT80,Guildhall-Meetings & Events,Www.Nisbets.Com,"1,052.08",H10,Equipment Purchase,5964,Direct Marketing Catalog Merchants
27/05/2022,CLG3,General Library,Saniflo Systems,95,Q55,Other Expenses (Capital Only),5074,Plumbing and Heating Equipment
27/05/2022,MA51,Democratic Services,Amznmktplace,10.98,J46,Other Expenses,5999,Miscellaneous and Specialty Retail Stores
27/05/2022,LT80,Guildhall-Meetings & Events,Sp Ashton Farms,513.9,H30,Catering (taxable benefit),5734,Computer Software Stores
30/05/2022,LB18,Libraries-Maidenhead,Amazon.Co.Uk*2g53t90s4,127.39,H10,Equipment Purchase,5969,Other Direct Marketing-Other Direct Marketers
30/05/2022,SVRS,Rough Sleepers,Thetrainline.Com,54.4,G39,Client Public Transport,4112,Passenger Railways
30/05/2022,MY74,Learning and Development,Llg Enterprises Ltd,-138,A70,Training - Non-Taxable Benefit,8249,"Schools, Trade and Vocational"
30/05/2022,SVHM,Homelessness,Travelodge Gb0000,585.4,K77,Client Temporary Accommodation,3615,Travelodge
30/05/2022,LB18,Libraries-Maidenhead,Amznmktplace,7.99,H10,Equipment Purchase,5999,Miscellaneous and Specialty Retail Stores
30/05/2022,MY74,Learning and Development,Llg Enterprises Ltd,-138,A70,Training - Non-Taxable Benefit,8249,"Schools, Trade and Vocational"
30/05/2022,MY74,Learning and Development,Llg Enterprises Ltd,-738,A70,Training - Non-Taxable Benefit,8249,"Schools, Trade and Vocational"
30/05/2022,LB18,Libraries-Maidenhead,Rymanbusiness.Com,27.59,H10,Equipment Purchase,5399,Miscellaneous General Merchandise
30/05/2022,PT60,Transport Policy & Planning,2042.4794.8815,744,H41,Printing,2741,Miscellaneous Publishing and Printing
30/05/2022,LB18,Libraries-Maidenhead,Ascot Hardware,7.99,H10,Equipment Purchase,5310,Discount Stores
30/05/2022,LT80,Guildhall-Meetings & Events,Www.Nisbets.Com,244.42,H10,Equipment Purchase,5964,Direct Marketing Catalog Merchants
30/05/2022,MA30,HR Strategic,C2e818601005k Ukvi,"2,199.00",J46,Other Expenses,9399,Government Services
31/05/2022,SVHM,Homelessness,Travelodge Gb0000,880.11,K77,Client Temporary Accommodation,3615,Travelodge
31/05/2022,SVRS,Rough Sleepers,Citizencard,15,H20,Client Personal Needs,8699,"Organizations, Membership"
31/05/2022,LB18,Libraries-Maidenhead,Amznmktplace,10.99,H10,Equipment Purchase,5999,Miscellaneous and Specialty Retail Stores
01/06/2022,LT80,Guildhall-Meetings & Events,Windsor And Eton Brewery,355.8,H30,Catering (taxable benefit),5921,"Package Stores, Beer, Wine, Liquor"
01/06/2022,EC37,PPS Independent Support,Patreon* Membership,4.82,J11,Corporate Subscriptions,5815,"Digital Goods - Media, Books, Movies, Music"
01/06/2022,LT80,Guildhall-Meetings & Events,W J Daniel & Co,36,H31,Catering (non-taxable benefit),5311,Department Stores
01/06/2022,SVST,Housing Strategy,Argos Ltd,150,H10,Equipment Purchase,5310,Discount Stores
01/06/2022,LT80,Guildhall-Meetings & Events,Costco Wholesale #114,85.36,H30,Catering (taxable benefit),7278,"Shopping Clubs, Services"
01/06/2022,LB18,Libraries-Maidenhead,Argos Ltd,150,H10,Equipment Purchase,5310,Discount Stores
02/06/2022,LT80,Guildhall-Meetings & Events,W J Daniel & Co,70,H10,Equipment Purchase,5311,Department Stores
02/06/2022,HE01,"MD/Strategic Director A,C & H",Rudding Park Limited,"1,382.40",J20,Conference Fees,7011,"Hotels, Motels, Resorts"
02/06/2022,LT80,Guildhall-Meetings & Events,Caffe Nero Windsor,12.85,H30,Catering (taxable benefit),5812,"Eating Places, Restaurants"
03/06/2022,LT80,Guildhall-Meetings & Events,Windsor And Eton Brewery,165.17,H30,Catering (taxable benefit),5921,"Package Stores, Beer, Wine, Liquor"
06/06/2022,EC37,PPS Independent Support,Foreign Exchange Fee,0.13,J81,Bank Charges,,
06/06/2022,MB30,Planning Development Control,Land Registry Ecom Ccc,6,J46,Other Expenses,9399,Government Services
06/06/2022,SVHM,Homelessness,Travelodge Gb0000,559.88,K77,Client Temporary Accommodation,3615,Travelodge
06/06/2022,MY74,Learning and Development,Llg Enterprises Ltd,-246,A70,Training - Non-Taxable Benefit,8249,"Schools, Trade and Vocational"
06/06/2022,MY74,Learning and Development,Llg Enterprises Ltd,-492,A70,Training - Non-Taxable Benefit,8249,"Schools, Trade and Vocational"
06/06/2022,MY74,Learning and Development,Llg Enterprises Ltd,-738,A70,Training - Non-Taxable Benefit,8249,"Schools, Trade and Vocational"
06/06/2022,MY74,Learning and Development,Llg Enterprises Ltd,-138,A70,Training - Non-Taxable Benefit,8249,"Schools, Trade and Vocational"
07/06/2022,CLG8,Pop Up Libraries-Equipment,"Boots,maidenhead",20,Q55,Other Expenses (Capital Only),5912,"Drug Stores, Pharmacies"
07/06/2022,MY37,Corporate I.T. - Networks,Amznmktplace,79.99,H91,Hardware,5999,Miscellaneous and Specialty Retail Stores
07/06/2022,LR10,Braywick Nature Centre,Toolstation Ltd,91.04,H10,Equipment Purchase,5211,Lumber & Building Materials Stores
08/06/2022,CLG8,Pop Up Libraries-Equipment,Amznmktplace,11.15,Q50,Purchase of Furniture & Equipment (Capital Only),5999,Miscellaneous and Specialty Retail Stores
08/06/2022,SCCM,Capacity Management,County Marquee,478.2,H10,Equipment Purchase,7394,Equipment Rental and Leasing Services
08/06/2022,MB01,Centralised Stationery,Stationery Uk,141.09,H45,Stationery,5943,"Office, School Supply, and Stationery Stores"
08/06/2022,CLG8,Pop Up Libraries-Equipment,Amznmktplace,99.96,Q50,Purchase of Furniture & Equipment (Capital Only),5999,Miscellaneous and Specialty Retail Stores
09/06/2022,LB18,Libraries-Maidenhead,Amznmktplace,8.99,H10,Equipment Purchase,5999,Miscellaneous and Specialty Retail Stores
09/06/2022,LB18,Libraries-Maidenhead,Amznmktplace,16.95,H10,Equipment Purchase,5999,Miscellaneous and Specialty Retail Stores
10/06/2022,PT60,Transport Policy & Planning,Simply Folders,921.6,H41,Printing,7372,"Computer Program, System Design"
10/06/2022,EC37,PPS Independent Support,Contstant Contact,18,J11,Corporate Subscriptions,5968,Direct Marketing Continuity Subscription Merchants
10/06/2022,LT80,Guildhall-Meetings & Events,Sainsburys S/mkts,13.2,H31,Catering (non-taxable benefit),5411,Grocery Stores and Supermarkets
13/06/2022,LE10,Economic Development,Amznmktplace,79.99,H91,Hardware,5999,Miscellaneous and Specialty Retail Stores
13/06/2022,MB01,Centralised Stationery,Stationery Uk,60.07,H45,Stationery,5943,"Office, School Supply, and Stationery Stores"
14/06/2022,MT49,Community Warden Scheme,Dvla Vehicle Tax,157.5,H10,Equipment Purchase,9311,Tax Payments
14/06/2022,LT50,Tourism Support,Royal Mail Online Shop,177.05,J46,Other Expenses,9402,Postal Services - Government Only
14/06/2022,ML15,Public Relations,Contstant Contact,297,A77,Professional Subscriptions,5968,Direct Marketing Continuity Subscription Merchants
14/06/2022,MB30,Planning Development Control,Land Registry Ecom Ccc,6,J46,Other Expenses,9399,Government Services
14/06/2022,SVHM,Homelessness,Travelodge Gb0000,"1,096.35",K77,Client Temporary Accommodation,3615,Travelodge
14/06/2022,MJ20,Civic & Mayoral Costs,Bourne End Jewellers L,80,J46,Other Expenses,5944,"Clock, Jewelry, Watch, and Silverware Store"
14/06/2022,MT49,Community Warden Scheme,Dvla Vehicle Tax,157.5,H10,Equipment Purchase,9311,Tax Payments
14/06/2022,MB30,Planning Development Control,Land Registry Ecom Ccc,6,J46,Other Expenses,9399,Government Services
14/06/2022,MB30,Planning Development Control,Land Registry Ecom Ccc,6,J46,Other Expenses,9399,Government Services
14/06/2022,MT49,Community Warden Scheme,Dvla Vehicle Tax,157.5,H10,Equipment Purchase,9311,Tax Payments
15/06/2022,ML15,Public Relations,Www.Cipr.Co.Uk,576,A77,Professional Subscriptions,8699,"Organizations, Membership"
15/06/2022,MY37,Corporate I.T. - Networks,Amazon Prime*2c27282t4,79,J11,Corporate Subscriptions,5968,Direct Marketing Continuity Subscription Merchants
15/06/2022,LT80,Guildhall-Meetings & Events,Www.Hannalbalbrown.Com,71.63,H30,Catering (taxable benefit),5921,"Package Stores, Beer, Wine, Liquor"
15/06/2022,MB30,Planning Development Control,Land Registry Ecom Ccc,6,J46,Other Expenses,9399,Government Services
15/06/2022,LB18,Libraries-Maidenhead,Amz*amazon Business Uk,-127.39,H10,Equipment Purchase,5969,Other Direct Marketing-Other Direct Marketers
16/06/2022,MB30,Planning Development Control,Land Registry Ecom Ccc,6,J46,Other Expenses,9399,Government Services
16/06/2022,SVRS,Rough Sleepers,Nas Scotland People,13.22,H20,Client Personal Needs,9399,Government Services
16/06/2022,MA69,Facilities Management,C Brewer & Sons,8.18,H10,Equipment Purchase,5211,Lumber & Building Materials Stores
16/06/2022,CLG8,Pop Up Libraries-Equipment,Amznmktplace,61.98,Q55,Other Expenses (Capital Only),5999,Miscellaneous and Specialty Retail Stores
17/06/2022,ML15,Public Relations,Axate,2,A77,Professional Subscriptions,5968,Direct Marketing Continuity Subscription Merchants
17/06/2022,CLG8,Pop Up Libraries-Equipment,Paypal *ukpointsale,125.51,Q50,Purchase of Furniture & Equipment (Capital Only),5311,Department Stores
20/06/2022,LB18,Libraries-Maidenhead,Theworks,6.5,J46,Other Expenses,5310,Discount Stores
20/06/2022,LB18,Libraries-Maidenhead,Rymanbusiness.Com,50.44,J46,Other Expenses,5399,Miscellaneous General Merchandise
20/06/2022,LB18,Libraries-Maidenhead,Wf Education Group Ltd,33.24,J46,Other Expenses,5047,Dental/Laboratory/Medical Equipment & Supplies
21/06/2022,MB30,Planning Development Control,Land Registry Ecom Ccc,6,J46,Other Expenses,9399,Government Services
21/06/2022,MB30,Planning Development Control,Land Registry Ecom Ccc,6,J46,Other Expenses,9399,Government Services
21/06/2022,SVHM,Homelessness,Travelodge Gb0000,87.7,K77,Client Temporary Accommodation,3615,Travelodge
21/06/2022,AJ22,S E Library Management System,Currys Medway,34.99,H94,IT Consumables,5722,Household Appliance Stores
22/06/2022,MA04,Head of Strategy & Performance,Amznmktplace,18.98,H22,Materials,5999,Miscellaneous and Specialty Retail Stores
22/06/2022,LB18,Libraries-Maidenhead,Dvla Vehicle Tax,182.5,J46,Other Expenses,9311,Tax Payments
22/06/2022,LB18,Libraries-Maidenhead,Amznmktplace,27.98,J46,Other Expenses,5999,Miscellaneous and Specialty Retail Stores
22/06/2022,CLG8,Pop Up Libraries-Equipment,Amznmktplace,36.97,Q55,Other Expenses (Capital Only),5999,Miscellaneous and Specialty Retail Stores
22/06/2022,LT80,Guildhall-Meetings & Events,Www.Nisbets.Com,456.11,H10,Equipment Purchase,5964,Direct Marketing Catalog Merchants
22/06/2022,SVRS,Rough Sleepers,The Manor Hotel,40,K77,Client Temporary Accommodation,7011,"Hotels, Motels, Resorts"
22/06/2022,ML15,Public Relations,Www.Cipr.Co.Uk,672,A77,Professional Subscriptions,8699,"Organizations, Membership"
22/06/2022,SVHM,Homelessness,Travelodge Gb0000,89.74,K77,Client Temporary Accommodation,3615,Travelodge
23/06/2022,MH41,L & RS F2F Libraries,Gwr Maidenhead Sst,6.6,G40,Staff Public Transport,4112,Passenger Railways
23/06/2022,MA30,HR Strategic,S00806737iny2 Ukvi,200,J46,Other Expenses,9399,Government Services
23/06/2022,CLG8,Pop Up Libraries-Equipment,Amznmktplace,49.95,Q55,Other Expenses (Capital Only),5999,Miscellaneous and Specialty Retail Stores
23/06/2022,SVHM,Homelessness,Travelodge Gb0000,87.7,K77,Client Temporary Accommodation,3615,Travelodge
23/06/2022,LT80,Guildhall-Meetings & Events,Makro Self Service Readin,430.42,H30,Catering (taxable benefit),5300,Wholesale Clubs
24/06/2022,LT80,Guildhall-Meetings & Events,Laithwaites Wine,"1,972.04",H30,Catering (taxable benefit),5921,"Package Stores, Beer, Wine, Liquor"
24/06/2022,MA69,Facilities Management,The Boat House,112.45,J46,Other Expenses,5813,"Bars, Cocktail Lounges, Discotheques, Nightclubs"
24/06/2022,MY74,Learning and Development,Chartered Institute Of En,99,A70,Training - Non-Taxable Benefit,8398,"Organizations, Charitable and Social Service"
24/06/2022,LT50,Tourism Support,Vmo*vimeo Pro,226.8,J46,Other Expenses,5968,Direct Marketing Continuity Subscription Merchants
24/06/2022,MJ30,Members Expenses,Zoom.Gbp,83.93,J11,Corporate Subscriptions,5968,Direct Marketing Continuity Subscription Merchants
24/06/2022,LB18,Libraries-Maidenhead,Wyre Electrical,12.89,H10,Equipment Purchase,5999,Miscellaneous and Specialty Retail Stores
25/06/2022,MA69,Facilities Management,Cs *belmond Gift Card,500,J46,Other Expenses,6540,POI Funding Transactions (Excl MC MoneySend)
25/06/2022,LT80,Guildhall-Meetings & Events,Sainsburys S/mkts,58.8,H31,Catering (non-taxable benefit),5411,Grocery Stores and Supermarkets
27/06/2022,MB30,Planning Development Control,Land Registry Ecom Ccc,6,J46,Other Expenses,9399,Government Services
27/06/2022,LT80,Guildhall-Meetings & Events,Laithwaites Wine,239.76,H30,Catering (taxable benefit),5921,"Package Stores, Beer, Wine, Liquor"
27/06/2022,LT80,Guildhall-Meetings & Events,Www.Nisbets.Com,118.76,H10,Equipment Purchase,5964,Direct Marketing Catalog Merchants
27/06/2022,SVHM,Homelessness,Travelodge Gb0000,87.7,K77,Client Temporary Accommodation,3615,Travelodge
28/06/2022,SVHM,Homelessness,Premier Inn44533120,163,K77,Client Temporary Accommodation,3811,Premier Inn
28/06/2022,SVHM,Homelessness,Travelodge Gb0000,101.98,K77,Client Temporary Accommodation,3615,Travelodge
28/06/2022,LR10,Braywick Nature Centre,R B W M,21,J46,Other Expenses,9311,Tax Payments
28/06/2022,MY37,Corporate I.T. - Networks,Amznmktplace,2.2,H91,Hardware,5999,Miscellaneous and Specialty Retail Stores
29/06/2022,AJ22,S E Library Management System,Se Online Web,35.85,G40,Staff Public Transport,4112,Passenger Railways
29/06/2022,MJ20,Civic & Mayoral Costs,Frosts,189.6,J46,Other Expenses,5399,Miscellaneous General Merchandise
29/06/2022,MJ30,Members Expenses,Rio Deli Maidenhead,6.76,H35,Refreshments,5812,"Eating Places, Restaurants"
29/06/2022,MB30,Planning Development Control,Land Registry Ecom Ccc,6,J46,Other Expenses,9399,Government Services
30/06/2022,LT80,Guildhall-Meetings & Events,Windsor And Eton Brewery,231.12,H30,Catering (taxable benefit),5921,"Package Stores, Beer, Wine, Liquor"
30/06/2022,MB01,Centralised Stationery,Stationery Uk,441.54,H45,Stationery,5943,"Office, School Supply, and Stationery Stores"
30/06/2022,PB10,Planning Development Control,Online50,120,H91,Hardware,5734,Computer Software Stores
30/06/2022,SVRS,Rough Sleepers,Currys Online,288.99,H20,Client Personal Needs,5732,Electronic Sales
30/06/2022,LR10,Braywick Nature Centre,Www.Screwfix.Com,24.98,H10,Equipment Purchase,5211,Lumber & Building Materials Stores
30/06/2022,EC37,PPS Independent Support,Thetrainline.Com,104.49,G39,Client Public Transport,4112,Passenger Railways
30/06/2022,SVRS,Rough Sleepers,Abri,254.4,H20,Client Personal Needs,9399,Government Services
01/07/2022,LR10,Braywick Nature Centre,Screwfix Dir Ltd,-0.2,H10,Equipment Purchase,5211,Lumber & Building Materials Stores
01/07/2022,LT80,Guildhall-Meetings & Events,Www.Nisbets.Com,263.98,H10,Equipment Purchase,5964,Direct Marketing Catalog Merchants
01/07/2022,LR10,Braywick Nature Centre,Screwfix Dir Ltd,5.99,H10,Equipment Purchase,5211,Lumber & Building Materials Stores
01/07/2022,MA66,Information Governance,Amznmktplace,24.98,J46,Other Expenses,5999,Miscellaneous and Specialty Retail Stores
01/07/2022,EC37,PPS Independent Support,Patreon* Membership,5.01,J11,Corporate Subscriptions,5815,"Digital Goods - Media, Books, Movies, Music"
01/07/2022,LB18,Libraries-Maidenhead,Amznmktplace,9.99,J46,Other Expenses,5999,Miscellaneous and Specialty Retail Stores
04/07/2022,EC37,PPS Independent Support,Foreign Exchange Fee,0.14,J81,Bank Charges,,
04/07/2022,SVST,Housing Strategy,Argos Ltd,447.95,H10,Equipment Purchase,5310,Discount Stores
04/07/2022,LR10,Braywick Nature Centre,Homebase Ltd,7.45,J46,Other Expenses,5200,Home Supply Warehouse Stores
04/07/2022,LR10,Braywick Nature Centre,Ppl Prs Ltd,172.69,J46,Other Expenses,8699,"Organizations, Membership"
04/07/2022,SVST,Housing Strategy,Argos Ltd,760,H10,Equipment Purchase,5310,Discount Stores
04/07/2022,MA69,Facilities Management,Halfords 0371,20,H10,Equipment Purchase,5940,Bicycle Shops-Sales and Service
04/07/2022,MB01,Centralised Stationery,Amznmktplace,13.9,H10,Equipment Purchase,5999,Miscellaneous and Specialty Retail Stores
04/07/2022,MB01,Centralised Stationery,Amazon.Co.Uk*2y06t6be4,12.72,H10,Equipment Purchase,5969,Other Direct Marketing-Other Direct Marketers
04/07/2022,MH31,Commercial & Residential Services,Sp Divertimenti Limi,79,E10,Equipment Purchase/Repair,5719,Miscellaneous House Furnishing Specialty Shops
05/07/2022,LB18,Libraries-Maidenhead,Theworks,10,J46,Other Expenses,5310,Discount Stores
05/07/2022,MB01,Centralised Stationery,Amznmktplace,10.35,H10,Equipment Purchase,5999,Miscellaneous and Specialty Retail Stores
05/07/2022,MB01,Centralised Stationery,Amzn Mktp Uk*2y0d22ba4,16.4,H10,Equipment Purchase,5942,Book Stores
06/07/2022,AJ22,S E Library Management System,Se Strood To,47.5,G40,Staff Public Transport,4112,Passenger Railways
06/07/2022,MY74,Learning and Development,Www.Souterstraining.Co,198,A70,Training - Non-Taxable Benefit,8249,"Schools, Trade and Vocational"
06/07/2022,MB01,Centralised Stationery,Crazy About Framing Vat 3,25.98,H45,Stationery,5947,"Card, Gift, Novelty, and Souvenir Shops"
06/07/2022,MB30,Planning Development Control,Land Registry Ecom Ccc,6,J46,Other Expenses,9399,Government Services
07/07/2022,SVHM,Homelessness,Travelodge Gb0000,431.4,K77,Client Temporary Accommodation,3615,Travelodge
07/07/2022,MJ20,Civic & Mayoral Costs,Powerbell Services Limite,482.55,G10,Vehicle Servicing & Repairs,7538,Automotive Service Shops
07/07/2022,CA17,Delivery of IT Equipment,Amznmktplace,132,Q62,Other IT Services (Capital Only),5999,Miscellaneous and Specialty Retail Stores
07/07/2022,MA30,HR Strategic,S00806737iny Ukvi,200,J46,Other Expenses,9399,Government Services
08/07/2022,MH31,Commercial & Residential Services,Amznmktplace,18.38,E10,Equipment Purchase/Repair,5999,Miscellaneous and Specialty Retail Stores
08/07/2022,MY74,Learning and Development,Paypal *equalitydiv,885,A70,Training - Non-Taxable Benefit,8244,"Schools, Business and Secretarial"
08/07/2022,LB18,Libraries-Maidenhead,Paypal *d N D M Ltd,255.94,H10,Equipment Purchase,5099,Other Durable Goods
08/07/2022,MA69,Facilities Management,Screwfix Dir Ltd,29.52,H10,Equipment Purchase,5211,Lumber & Building Materials Stores
10/07/2022,EC37,PPS Independent Support,Contstant Contact,18,J11,Corporate Subscriptions,5968,Direct Marketing Continuity Subscription Merchants
10/07/2022,LB18,Libraries-Maidenhead,Amazon.Co.Uk*zi11f4vl5,32.89,H10,Equipment Purchase,5969,Other Direct Marketing-Other Direct Marketers
11/07/2022,MA30,HR Strategic,C2e822801021n Ukvi,199,J46,Other Expenses,9399,Government Services
11/07/2022,MA30,HR Strategic,C2e822801139p Ukvi,1199,J46,Other Expenses,9399,Government Services
11/07/2022,LB18,Libraries-Maidenhead,Emx Dynamics Limited,357.55,J46,Other Expenses,2741,Miscellaneous Publishing and Printing
11/07/2022,MC36,Pensions Administration,Thetrainline.Com,36.25,G39,Client Public Transport,4112,Passenger Railways
12/07/2022,LR10,Braywick Nature Centre,Post Office Counter,9.05,J46,Other Expenses,9402,Postal Services - Government Only
12/07/2022,LT80,Guildhall-Meetings & Events,Windsor And Eton Brewery,213.12,H30,Catering (taxable benefit),5921,"Package Stores, Beer, Wine, Liquor"
12/07/2022,LT80,Guildhall-Meetings & Events,Windsor And Eton Brewery,-231.12,H30,Catering (taxable benefit),5921,"Package Stores, Beer, Wine, Liquor"
12/07/2022,LT80,Guildhall-Meetings & Events,Www.Hannalbalbrown.Com,63.64,H30,Catering (taxable benefit),5921,"Package Stores, Beer, Wine, Liquor"
13/07/2022,NA11,Town Hall- Operations,Sainsburys S/mkts,1.45,H31,Catering (non-taxable benefit),5411,Grocery Stores and Supermarkets
13/07/2022,MA30,HR Strategic,C2e823000424h Ukvi,199,J46,Other Expenses,9399,Government Services
13/07/2022,LB18,Libraries-Maidenhead,Amznmktplace,22.69,J46,Other Expenses,5999,Miscellaneous and Specialty Retail Stores
13/07/2022,AJ22,S E Library Management System,Se Strood Sst,17,G40,Staff Public Transport,4112,Passenger Railways
14/07/2022,MA69,Facilities Management,Www.Screwfix.Com,287.92,H10,Equipment Purchase,5211,Lumber & Building Materials Stores
14/07/2022,SVAT,Housing Policy Team Costs,Travelodge Gb0000,223.33,K77,Client Temporary Accommodation,3615,Travelodge
14/07/2022,SVAT,Housing Policy Team Costs,Travelodge Gb0000,262.09,K77,Client Temporary Accommodation,3615,Travelodge
14/07/2022,ML15,Public Relations,Contstant Contact,297,A77,Professional Subscriptions,5968,Direct Marketing Continuity Subscription Merchants
15/07/2022,SVRS,Rough Sleepers,Currys Online,348,H20,Client Personal Needs,5732,Electronic Sales
15/07/2022,MA69,Facilities Management,Premier Inn 44535940,131.5,J46,Other Expenses,3811,Premier Inn
15/07/2022,LB70,Libraries-Stock Fund,Baker Ross,24.7,J47,Events & Activities,5970,"Artist Supply Stores, Craft Shops"
15/07/2022,MB01,Centralised Stationery,Stationery Uk,291.63,H45,Stationery,5943,"Office, School Supply, and Stationery Stores"
16/07/2022,MA69,Facilities Management,Www.Nisbets.Com,135.04,H10,Equipment Purchase,5964,Direct Marketing Catalog Merchants
17/07/2022,ML15,Public Relations,Axate,2,A77,Professional Subscriptions,5968,Direct Marketing Continuity Subscription Merchants
18/07/2022,EC37,PPS Independent Support,Loqate,60,J46,Other Expenses,5968,Direct Marketing Continuity Subscription Merchants
18/07/2022,LR10,Braywick Nature Centre,Homebase Ltd,6.95,J46,Other Expenses,5200,Home Supply Warehouse Stores
18/07/2022,NA11,Town Hall- Operations,Robert Dyas Maidenhead,4.99,H10,Equipment Purchase,5251,Hardware Stores
18/07/2022,MY74,Learning and Development,Paypal *otb,96,A70,Training - Non-Taxable Benefit,8999,Professional Services
18/07/2022,LR10,Braywick Nature Centre,Thames Antiques & Vint,30,J46,Other Expenses,5932,"Antique Sales, Repairs, and Restoration Services"
18/07/2022,MB30,Planning Development Control,Land Registry Ecom Ccc,6,J46,Other Expenses,9399,Government Services
18/07/2022,LR10,Braywick Nature Centre,Theworks,13,J46,Other Expenses,5310,Discount Stores
19/07/2022,LB70,Libraries-Stock Fund,Amznmktplace,21.98,J47,Events & Activities,5999,Miscellaneous and Specialty Retail Stores
19/07/2022,CLG8,Pop Up Libraries-Equipment,Paypal *greenmagic,72.6,Q50,Purchase of Furniture & Equipment (Capital Only),8931,"Accounting, Auditing, and Bookkeeping Services"
20/07/2022,SVST,Housing Strategy,Amazon.Co.Uk*m97gx5on5,17.29,J46,Other Expenses,5969,Other Direct Marketing-Other Direct Marketers
21/07/2022,MB01,Centralised Stationery,Stationery Uk,31.78,H45,Stationery,5943,"Office, School Supply, and Stationery Stores"
21/07/2022,LB70,Libraries-Stock Fund,Paypal *costume All Ab,50,J47,Events & Activities,7296,"Clothing Rental, Uniforms, and Formal Wear"
22/07/2022,LB18,Libraries-Maidenhead,Paypal *ukpointsale,105,H10,Equipment Purchase,5311,Department Stores
24/07/2022,MJ30,Members Expenses,Zoom.Gbp,83.93,J11,Corporate Subscriptions,5968,Direct Marketing Continuity Subscription Merchants
25/07/2022,LB18,Libraries-Maidenhead,Paypal *costume All Ab,130,J47,Events & Activities,7296,"Clothing Rental, Uniforms, and Formal Wear"
25/07/2022,MY74,Learning and Development,Llg Enterprises Ltd,246,A70,Training - Non-Taxable Benefit,8249,"Schools, Trade and Vocational"
25/07/2022,MY74,Learning and Development,Llg Enterprises Ltd,246,A70,Training - Non-Taxable Benefit,8249,"Schools, Trade and Vocational"
25/07/2022,LB18,Libraries-Maidenhead,Emx Dynamics Limited,210.48,J46,Other Expenses,2741,Miscellaneous Publishing and Printing
25/07/2022,LB18,Libraries-Maidenhead,"Tradesparky Ltd, Stone",32.97,J46,Other Expenses,5065,Electrical Parts and Equipment
25/07/2022,MJ20,Civic & Mayoral Costs,Beaconsfield Sstp,32.8,G39,Client Public Transport,4112,Passenger Railways
26/07/2022,LB70,Libraries-Stock Fund,The Reading Agency,7.2,J47,Events & Activities,2791,"Typesetting, Plate Making, and Related Services"
26/07/2022,MB30,Planning Development Control,Land Registry Ecom Ccc,6,J46,Other Expenses,9399,Government Services
26/07/2022,LB70,Libraries-Stock Fund,The Reading Agency,84,J47,Events & Activities,2791,"Typesetting, Plate Making, and Related Services"
26/07/2022,MJ30,Members Expenses,Zoom.Us 888-799-9666,36.48,J11,Corporate Subscriptions,4814,Telecommunication Services
26/07/2022,LR10,Braywick Nature Centre,B.C.A,565,J46,Other Expenses,8220,"Colleges, Universities, Professional Schools"
27/07/2022,LR10,Braywick Nature Centre,Www.Screwfix.Com,154.98,J46,Other Expenses,5211,Lumber & Building Materials Stores
27/07/2022,PX01,Trading Standards,Www.Apea.Org.Uk,50,J46,Other Expenses,8699,"Organizations, Membership"
27/07/2022,LR10,Braywick Nature Centre,Www.Screwfix.Com,27.99,J46,Other Expenses,5211,Lumber & Building Materials Stores
27/07/2022,AJ55,Tree Team,Www.Tarpaflex.Co.Uk,54.6,H10,Equipment Purchase,5251,Hardware Stores
27/07/2022,AJ55,Tree Team,Honey Brothers Ltd,59.58,H10,Equipment Purchase,5072,Hardware Equipment and Supplies
28/07/2022,MA30,HR Strategic,S00806737iny Ukvi,200,J46,Other Expenses,9399,Government Services
28/07/2022,LT80,Guildhall-Meetings & Events,Robert Dyas Windsor,65.14,H10,Equipment Purchase,5251,Hardware Stores
28/07/2022,MY74,Learning and Development,Www.Apea.Org.Uk,1344,A70,Training - Non-Taxable Benefit,8699,"Organizations, Membership"
28/07/2022,LB18,Libraries-Maidenhead,Amazon.Co.Uk*b24nm2oz5,2.49,J46,Other Expenses,5969,Other Direct Marketing-Other Direct Marketers
28/07/2022,LB18,Libraries-Maidenhead,Amznmktplace,19.37,H10,Equipment Purchase,5999,Miscellaneous and Specialty Retail Stores
28/07/2022,LT80,Guildhall-Meetings & Events,Laithwaites Wine,1106.16,H30,Catering (taxable benefit),5921,"Package Stores, Beer, Wine, Liquor"
28/07/2022,LB18,Libraries-Maidenhead,Www.Theworks.Co.Uk,27,J46,Other Expenses,5310,Discount Stores
28/07/2022,LB18,Libraries-Maidenhead,Amznmktplace,11.95,H10,Equipment Purchase,5999,Miscellaneous and Specialty Retail Stores
28/07/2022,LB18,Libraries-Maidenhead,Barrier 2 Go,56.4,H10,Equipment Purchase,5046,Other Commercial Equipment
29/07/2022,MA30,HR Strategic,C2e824600198m Ukvi,199,J46,Other Expenses,9399,Government Services
31/07/2022,LT80,Guildhall-Meetings & Events,Premier Inn44529760,79,J46,Other Expenses,3811,Premier Inn
31/07/2022,LT80,Guildhall-Meetings & Events,Www.Hannalbalbrown.Com,-11.5,H30,Catering (taxable benefit),5921,"Package Stores, Beer, Wine, Liquor"
01/08/2022,LB18,Libraries-Maidenhead,Amznmktplace,19.31,H10,Equipment Purchase,5999,Miscellaneous and Specialty Retail Stores
01/08/2022,LB18,Libraries-Maidenhead,Amznmktplace,5.99,H10,Equipment Purchase,5999,Miscellaneous and Specialty Retail Stores
01/08/2022,ML15,Public Relations,Axate,3,A77,Professional Subscriptions,5968,Direct Marketing Continuity Subscription Merchants
01/08/2022,MB01,Centralised Stationery,Stationery Uk,237.46,H45,Stationery,5943,"Office, School Supply, and Stationery Stores"
01/08/2022,EC37,PPS Independent Support,Patreon* Membership,4.94,J46,Other Expenses,5815,"Digital Goods - Media, Books, Movies, Music"
02/08/2022,EC37,PPS Independent Support,Foreign Exchange Fee,0.14,J46,Other Expenses,,
02/08/2022,MB30,Planning Development Control,Land Registry Ecom Ccc,6,J46,Other Expenses,9399,Other Expenses
02/08/2022,LB18,Libraries-Maidenhead,Amznmktplace,18.99,H10,Equipment Purchase,5999,Equipment Purchase
03/08/2022,LT80,Guildhall-Meetings & Events,Windsor And Eton Brewery,135.58,H30,Catering (taxable benefit),5921,Catering (taxable benefit)
03/08/2022,PT70,Road Safety,Windsor And Eton Brewery,72.83,H30,Catering (taxable benefit),5921,Catering (taxable benefit)
05/08/2022,LB18,Libraries-Maidenhead,Amznmktplace,39.98,H10,Equipment Purchase,5999,Equipment Purchase
05/08/2022,MA87,Deputyship,Ao Retail Limited,398.99,H20,Client Personal Needs,5722,Client Personal Needs
05/08/2022,MY74,Learning and Development,Llg Enterprises Ltd,246,A70,Training - Non-Taxable Benefit,8249,Training - Non-Taxable Benefit
05/08/2022,SVRS,Rough Sleepers,Buy It Direct,349.93,H20,Client Personal Needs,5732,Client Personal Needs
05/08/2022,MY74,Learning and Development,Llg Enterprises Ltd,246,A70,Training - Non-Taxable Benefit,8249,Training - Non-Taxable Benefit
05/08/2022,LB18,Libraries-Maidenhead,Amznmktplace,1.36,H10,Equipment Purchase,5999,Equipment Purchase
05/08/2022,LT80,Guildhall-Meetings & Events,Sainsburys S/mkts,13.3,H31,Catering (non-taxable benefit),5411,Catering (non-taxable benefit)
05/08/2022,MA87,Deputyship,Manypets,195.92,H20,Client Personal Needs,5995,Client Personal Needs
05/08/2022,MA87,Deputyship,Marks&spencer Plc,201.59,H20,Client Personal Needs,5411,Client Personal Needs
05/08/2022,MC36,Pensions Administration,Institute Of Payroll P,205,A70,Training - Non-Taxable Benefit,8999,Training - Non-Taxable Benefit
05/08/2022,LB18,Libraries-Maidenhead,Amznmktplace,13.5,H10,Equipment Purchase,5999,Equipment Purchase
06/08/2022,LT80,Guildhall-Meetings & Events,Waitrose 772,11.5,H30,Catering (taxable benefit),5411,Catering (taxable benefit)
07/08/2022,LB18,Libraries-Maidenhead,Amazon.Co.Uk*wn1pp74r5,3.5,H10,Equipment Purchase,5969,Equipment Purchase
07/08/2022,LB18,Libraries-Maidenhead,Amznmktplace,43.49,H10,Equipment Purchase,5999,Equipment Purchase
08/08/2022,LB18,Libraries-Maidenhead,Amznmktplace,7.99,J46,Other Expenses,5999,Other Expenses
09/08/2022,LT80,Guildhall-Meetings & Events,Makro Self Service Readin,26.24,H30,Catering (taxable benefit),5300,Catering (taxable benefit)
09/08/2022,MA87,Deputyship,Marks&spencer Plc,-4.99,H20,Client Personal Needs,5411,Client Personal Needs
09/08/2022,MB01,Centralised Stationery,Stationery Uk,75.34,H45,Stationery,5943,Stationery
10/08/2022,LB70,Libraries-Stock Fund,Paypal *costume All Ab,-50,J47,Events & Activities,7296,Events & Activities
10/08/2022,MT49,Community Warden Scheme,Amznmktplace,14.25,H10,Equipment Purchase,5999,Equipment Purchase
10/08/2022,EC37,PPS Independent Support,Contstant Contact,18,J11,Corporate Subscriptions,5968,Corporate Subscriptions
10/08/2022,MB30,Planning Development Control,Land Registry Ecom Ccc,6,J46,Other Expenses,9399,Other Expenses
10/08/2022,MB30,Planning Development Control,Land Registry Ecom Ccc,6,J46,Other Expenses,9399,Other Expenses
10/08/2022,MT49,Community Warden Scheme,Amznmktplace,5.89,H10,Equipment Purchase,5999,Equipment Purchase
10/08/2022,ML15,Public Relations,Www.Ioic.Org.Uk,874.8,J47,Events & Activities,8299,Events & Activities
10/08/2022,MB30,Planning Development Control,Land Registry Ecom Ccc,6,J46,Other Expenses,9399,Other Expenses
11/08/2022,SVHM,Homelessness,Travelodge Gb0000,481.36,K77,Client Temporary Accommodation,3615,Client Temporary Accommodation
12/08/2022,SVHM,Homelessness,Travelodge Gb0000,427.3,K77,Client Temporary Accommodation,3615,Client Temporary Accommodation
14/08/2022,LB18,Libraries-Maidenhead,Amznmktplace,155.94,H10,Equipment Purchase,5999,Equipment Purchase
14/08/2022,MA51,Democratic Services,Amznmktplace,27,H91,Hardware,5999,Hardware
14/08/2022,ML15,Public Relations,Contstant Contact,297,A77,Professional Subscriptions,5968,Professional Subscriptions
15/08/2022,LB80,Libraries-Replacement System,Amznmktplace,13.99,H91,Hardware,5999,Hardware
15/08/2022,LB18,Libraries-Maidenhead,Dgsupplyline.Co.Uk,107.4,H10,Equipment Purchase,5251,Equipment Purchase
15/08/2022,LR10,Braywick Nature Centre,Royal Mail Group Ltd,1.65,J46,Other Expenses,9402,Other Expenses
15/08/2022,LB18,Libraries-Maidenhead,Replacement Keys Ltd,14.75,H10,Equipment Purchase,5399,Equipment Purchase
16/08/2022,LB80,Libraries-Replacement System,Amznmktplace,15.98,H91,Hardware,5999,Hardware
16/08/2022,LB80,Libraries-Replacement System,Amznmktplace,143.82,H91,Hardware,5999,Hardware
16/08/2022,MA51,Democratic Services,Argos Maidenhead,20,H10,Equipment Purchase,5310,Equipment Purchase
17/08/2022,LE10,Economic Development,Squarespace Inc.,19.2,A77,Professional Subscriptions,7372,Professional Subscriptions
17/08/2022,SVHM,Homelessness,Travelodge Gb0000,848.51,K77,Client Temporary Accommodation,3615,Client Temporary Accommodation
17/08/2022,MY74,Learning and Development,Westminster Insight,372.6,A70,Training - Non-Taxable Benefit,5815,Training - Non-Taxable Benefit
18/08/2022,MJ20,Civic & Mayoral Costs,British A 1254214334561,7,G40,Staff Public Transport,3005,Staff Public Transport
18/08/2022,MJ20,Civic & Mayoral Costs,British A 1254214334557,7,G40,Staff Public Transport,3005,Staff Public Transport
18/08/2022,MJ20,Civic & Mayoral Costs,British A 1254214334565,7,G40,Staff Public Transport,3005,Staff Public Transport
18/08/2022,MA51,Democratic Services,Amz*it Business Soluti,-27,H91,Hardware,5999,Hardware
18/08/2022,MJ20,Civic & Mayoral Costs,British A 1252142724547,367.36,G40,Staff Public Transport,3005,Staff Public Transport
18/08/2022,MB30,Planning Development Control,Land Registry Ecom Ccc,6,J46,Other Expenses,9399,Other Expenses
18/08/2022,MJ20,Civic & Mayoral Costs,British A 1252142724548,367.36,G40,Staff Public Transport,3005,Staff Public Transport
18/08/2022,MJ20,Civic & Mayoral Costs,British A 1252142724549,367.36,G40,Staff Public Transport,3005,Staff Public Transport
18/08/2022,MJ20,Civic & Mayoral Costs,British A 1254214334567,7,G40,Staff Public Transport,3005,Staff Public Transport
18/08/2022,MJ20,Civic & Mayoral Costs,British A 1254214334563,7,G40,Staff Public Transport,3005,Staff Public Transport
18/08/2022,MJ20,Civic & Mayoral Costs,British A 1254214334555,7,G40,Staff Public Transport,3005,Staff Public Transport
19/08/2022,SVHM,Homelessness,Travelodge Gb0000,636.37,K77,Client Temporary Accommodation,3615,Client Temporary Accommodation
19/08/2022,MJ20,Civic & Mayoral Costs,Sp Rbl Poppy Appeal,148,J46,Other Expenses,8398,Other Expenses
21/08/2022,LB18,Libraries-Maidenhead,Amznmktplace,74.95,J46,Other Expenses,5999,Other Expenses
23/08/2022,LE10,Economic Development,Sp Love Maps On Ltd.,100,J46,Other Expenses,7333,Other Expenses
23/08/2022,LT80,Guildhall-Meetings & Events,Laithwaites Wine,100.5,H30,Catering (taxable benefit),5921,Catering (taxable benefit)
24/08/2022,LR10,Braywick Nature Centre,Travis Perkins,87.63,H10,Equipment Purchase,5211,Equipment Purchase
24/08/2022,LT80,Guildhall-Meetings & Events,Windsor And Eton Brewery,58.83,H30,Catering (taxable benefit),5921,Catering (taxable benefit)
24/08/2022,MJ30,Members Expenses,Zoom.Us 888-799-9666,122.93,J11,Corporate Subscriptions,4814,Corporate Subscriptions
25/08/2022,MB30,Planning Development Control,Land Registry Ecom Ccc,6,J46,Other Expenses,9399,Other Expenses
25/08/2022,AJ22,S E Library Management System,Microsoft*microsoft 365 F,79.99,H92,Software,5816,Software
25/08/2022,MA87,Deputyship,Marks&spencer Plc,-196.6,H20,Client Personal Needs,5411,Client Personal Needs
26/08/2022,LB18,Libraries-Maidenhead,Amazon Prime*jg00w3sv5,0.99,J46,Other Expenses,5968,Other Expenses
26/08/2022,LB18,Libraries-Maidenhead,Amznmktplace,6.99,H91,Hardware,5999,Hardware
26/08/2022,SVHM,Homelessness,Travelodge Gb0000,383.44,K77,Client Temporary Accommodation,3615,Client Temporary Accommodation
30/08/2022,MB01,Centralised Stationery,Stationery Uk,331.93,H45,Stationery,5943,Stationery
30/08/2022,MB01,Centralised Stationery,Stationery Uk,541.01,H45,Stationery,5943,Stationery
30/08/2022,LB17,Libraries-Horton,"Boots,maidenhead",20,F21,Health & Safety,5912,Health & Safety
30/08/2022,CLG8,Pop Up Libraries-Equipment,Amznmktplace,35.92,H10,Equipment Purchase,5999,Equipment Purchase
30/08/2022,LB18,Libraries-Maidenhead,Hse* Id-7473376,63.3,F21,Health & Safety,5942,Health & Safety
30/08/2022,LB18,Libraries-Maidenhead,Amazon Prime*2w9ut9dj5,7.99,J46,Other Expenses,5968,Other Expenses
31/08/2022,SVHM,Homelessness,Premier Inn,"2,064.00",K77,Client Temporary Accommodation,3811,Client Temporary Accommodation
31/08/2022,SVHM,Homelessness,Premier Inn,"2,064.00",K77,Client Temporary Accommodation,3811,Client Temporary Accommodation
31/08/2022,MB30,Planning Development Control,Land Registry Ecom Ccc,6,J46,Other Expenses,9399,Other Expenses
31/08/2022,LC10,Cemeteries & Churchyards,Amznmktplace,34.41,H10,Equipment Purchase,5999,Equipment Purchase
31/08/2022,SVHM,Homelessness,Travelodge Gb0000,"1,917.24",K77,Client Temporary Accommodation,3615,Client Temporary Accommodation
31/08/2022,MB30,Planning Development Control,Land Registry Ecom Ccc,6,J46,Other Expenses,9399,Other Expenses
31/08/2022,MB30,Planning Development Control,Land Registry Ecom Ccc,6,J46,Other Expenses,9399,Other Expenses
31/08/2022,SVHM,Homelessness,Premier Inn,"-2,064.00",K77,Client Temporary Accommodation,3811,Premier Inn
01/09/2022,LE10,Economic Development,Squarespace Inc.,216,A77,Professional Subscriptions,7372,Professional Subscriptions
01/09/2022,MY74,Learning and Development,Chartered Institute Of En,280,A70,Training - Non-Taxable Benefit,8398,Training - Non-Taxable Benefit
01/09/2022,MC36,Pensions Administration,Wh Smith,50,H80,Communication,5994,Communication
01/09/2022,MC36,Pensions Administration,Institute Of Payroll P,205,A70,Training - Non-Taxable Benefit,8999,Training - Non-Taxable Benefit
01/09/2022,LB18,Libraries-Maidenhead,Amznmktplace,30.48,H10,Equipment Purchase,5999,Equipment Purchase
01/09/2022,EC37,PPS Independent Support,Patreon* Membership,5.22,J11,Corporate Subscriptions,5815,Corporate Subscriptions
01/09/2022,LT80,Guildhall-Meetings & Events,W J Daniel & Co,24,H10,Equipment Purchase,5311,Equipment Purchase
01/09/2022,MB30,Planning Development Control,Land Registry Ecom Ccc,6,J46,Other Expenses,9399,Other Expenses
01/09/2022,LB18,Libraries-Maidenhead,Paypal *dortecharch,185.96,H10,Equipment Purchase,8931,Equipment Purchase
01/09/2022,SVHM,Homelessness,Travelodge Gb0000,292.68,K77,Client Temporary Accommodation,3615,Client Temporary Accommodation
01/09/2022,MC36,Pensions Administration,Institute Of Payroll P,205,A70,Training - Non-Taxable Benefit,8999,Training - Non-Taxable Benefit
02/09/2022,EC37,PPS Independent Support,Foreign Exchange Fee,0.14,J81,Bank Charges,,Bank Charges
02/09/2022,MY74,Learning and Development,Westminster Insight,457.92,A70,Training - Non-Taxable Benefit,5815,"Digital Goods - Media, Books, Movies, Music"
02/09/2022,MA87,Deputyship,Manypets,-185.04,H20,Client Personal Needs,5995,Pet Shops-Pet Food and Supplies
02/09/2022,AJ22,S E Library Management System,Paymate*spun,413.87,A77,Professional Subscriptions,8999,Professional Services
02/09/2022,LT80,Guildhall-Meetings & Events,Laithwaites Wine,988.24,H30,Catering (taxable benefit),5921,"Package Stores, Beer, Wine, Liquor"
02/09/2022,LB18,Libraries-Maidenhead,Amazon Prime*nu6ha4ab5,7.99,J46,Other Expenses,5968,Direct Marketing Continuity Subscription Merchants
02/09/2022,MB01,Centralised Stationery,Stationery Uk,192.78,H45,Stationery,5943,"Office, School Supply, and Stationery Stores"
03/09/2022,EC37,PPS Independent Support,Amazon.Co.Uk*mb8ea6ya5,29.96,H45,Stationery,5969,Other Direct Marketing-Other Direct Marketers
04/09/2022,LB18,Libraries-Maidenhead,Amznmktplace,8.49,H10,Equipment Purchase,5999,Miscellaneous and Specialty Retail Stores
05/09/2022,SVHM,Homelessness,Travelodge Gb0000,55.06,K77,Client Temporary Accommodation,3615,Travelodge
05/09/2022,MY74,Learning and Development,Chartered Institute Of En,50,A70,Training - Non-Taxable Benefit,8398,"Organizations, Charitable and Social Service"
05/09/2022,PT70,Road Safety,Hobbycraft,19,H45,Stationery,5970,"Artist Supply Stores, Craft Shops"
05/09/2022,MY74,Learning and Development,Chartered Institute Of En,50,A70,Training - Non-Taxable Benefit,8398,"Organizations, Charitable and Social Service"
05/09/2022,MY74,Learning and Development,Chartered Institute Of En,50,A70,Training - Non-Taxable Benefit,8398,"Organizations, Charitable and Social Service"
05/09/2022,MB01,Centralised Stationery,Hobbycraft Trading Limite,19,H45,Stationery,5970,"Artist Supply Stores, Craft Shops"
05/09/2022,AJ22,S E Library Management System,Foreign Exchange Fee,11.38,A77,Professional Subscriptions,,
06/09/2022,LT80,Guildhall-Meetings & Events,Unit 4 Brewery Tap,70.6,H30,Catering (taxable benefit),5813,"Bars, Cocktail Lounges, Discotheques, Nightclubs"
06/09/2022,LT80,Guildhall-Meetings & Events,Unit 4 Brewery Tap,-58.83,H30,Catering (taxable benefit),5813,"Bars, Cocktail Lounges, Discotheques, Nightclubs"
06/09/2022,LT80,Guildhall-Meetings & Events,Unit 4 Brewery Tap,117.66,H30,Catering (taxable benefit),5813,"Bars, Cocktail Lounges, Discotheques, Nightclubs"
06/09/2022,LR10,Braywick Nature Centre,Halfords 0371,26.5,J46,Other Expenses,5940,Bicycle Shops-Sales and Service
06/09/2022,HE01,"MD/Strategic Director A,C & H",Premier Inn,373.5,J46,Other Expenses,3811,Premier Inn
06/09/2022,HE01,"MD/Strategic Director A,C & H",Premier Inn,732.5,J46,Other Expenses,3811,Premier Inn
06/09/2022,LR10,Braywick Nature Centre,Lidl Gb Maidenhead,5.97,J46,Other Expenses,5411,Grocery Stores and Supermarkets
06/09/2022,MJ20,Civic & Mayoral Costs,Apcoa Parking Uk,5,G11,Vehicle Supplies,7523,Automobile Parking Lots and Garages
07/09/2022,SVHM,Homelessness,Travelodge Gb0000,422.2,K77,Client Temporary Accommodation,3615,Travelodge
07/09/2022,SVHM,Homelessness,Travelodge Gb0000,422.2,K77,Client Temporary Accommodation,3615,Travelodge
07/09/2022,SVHM,Homelessness,Travelodge Gb0000,422.2,K77,Client Temporary Accommodation,3615,Travelodge
07/09/2022,LB18,Libraries-Maidenhead,Amazon Prime,-7.99,J46,Other Expenses,5968,Direct Marketing Continuity Subscription Merchants
08/09/2022,MY74,Learning and Development,Q Park Online Sales Uk,18.56,A70,Training - Non-Taxable Benefit,7523,Automobile Parking Lots and Garages
08/09/2022,LT50,Tourism Support,Facebk 6hpq6gfyc2,17,J46,Other Expenses,7311,Advertising Services
09/09/2022,LB18,Libraries-Maidenhead,St John Ambulance,5.28,F21,Health & Safety,8398,"Organizations, Charitable and Social Service"
09/09/2022,MA69,Facilities Management,Tesco Store 3404,91.6,H31,Catering (non-taxable benefit),5411,Grocery Stores and Supermarkets
09/09/2022,MA69,Facilities Management,Www.Screwfix.Com,223.99,H10,Equipment Purchase,5211,Lumber & Building Materials Stores
09/09/2022,MA69,Facilities Management,McDonalds,5.89,H30,Catering (taxable benefit),5812,"Eating Places, Restaurants"
09/09/2022,SVRS,Rough Sleepers,Currys Online,338,H20,Client Personal Needs,5732,Electronic Sales
09/09/2022,MY74,Learning and Development,Q Park Online Sales Uk,-18.56,A70,Training - Non-Taxable Benefit,7523,Automobile Parking Lots and Garages
09/09/2022,SVRS,Rough Sleepers,Argos Ltd,91.95,H20,Client Personal Needs,5310,Discount Stores
09/09/2022,LB18,Libraries-Maidenhead,St John Ambulance,13.98,F21,Health & Safety,8398,"Organizations, Charitable and Social Service"
09/09/2022,MA69,Facilities Management,B&q Ltd,158,H10,Equipment Purchase,5211,Lumber & Building Materials Stores
09/09/2022,MA69,Facilities Management,Makro Self Service Readin,471.1,H31,Catering (non-taxable benefit),5300,Wholesale Clubs
09/09/2022,MA69,Facilities Management,Sainsburys S/mkts,13.05,H31,Catering (non-taxable benefit),5411,Grocery Stores and Supermarkets
09/09/2022,MA69,Facilities Management,Www.Screwfix.Com,223.99,H10,Equipment Purchase,5211,Lumber & Building Materials Stores
10/09/2022,EC37,PPS Independent Support,Contstant Contact,18,J11,Corporate Subscriptions,5968,Direct Marketing Continuity Subscription Merchants
10/09/2022,MJ20,Civic & Mayoral Costs,British A 1254214913026,6,G40,Staff Public Transport,3005,British Airways
10/09/2022,MJ20,Civic & Mayoral Costs,British A 1252143911556,70,G40,Staff Public Transport,3005,British Airways
10/09/2022,MA69,Facilities Management,Tesco Store 3404,76.85,H31,Catering (non-taxable benefit),5411,Grocery Stores and Supermarkets
10/09/2022,MJ20,Civic & Mayoral Costs,British A 1254214912886,50,G40,Staff Public Transport,3005,British Airways
10/09/2022,MJ20,Civic & Mayoral Costs,British A 1254214912884,50,G40,Staff Public Transport,3005,British Airways
10/09/2022,MJ20,Civic & Mayoral Costs,British A 1254214913025,6,G40,Staff Public Transport,3005,British Airways
10/09/2022,MJ20,Civic & Mayoral Costs,British A 1252143911554,70,G40,Staff Public Transport,3005,British Airways
10/09/2022,MJ20,Civic & Mayoral Costs,British A 1254214912885,50,G40,Staff Public Transport,3005,British Airways
10/09/2022,MJ20,Civic & Mayoral Costs,British A 1252143911555,70,G40,Staff Public Transport,3005,British Airways
10/09/2022,MJ20,Civic & Mayoral Costs,British A 1254214913027,6,G40,Staff Public Transport,3005,British Airways
12/09/2022,MA69,Facilities Management,Tesco Store 3404,10.15,H31,Catering (non-taxable benefit),5411,Grocery Stores and Supermarkets
12/09/2022,MA69,Facilities Management,Costco Wholesale #114,134.25,H30,Catering (taxable benefit),7278,"Shopping Clubs, Services"
12/09/2022,PB10,Planning Development Control,Rtpi,26.67,A77,Professional Subscriptions,7997,"Clubs Country Clubs, Membership"
12/09/2022,MA69,Facilities Management,McDonalds,12.84,H30,Catering (taxable benefit),5814,Quick Payment Service-Fast-Food Restaurants
13/09/2022,MB01,Centralised Stationery,Theworks,10,H45,Stationery,5310,Discount Stores
13/09/2022,MA69,Facilities Management,Tesco Stores 6742,6.6,H31,Catering (non-taxable benefit),5411,Grocery Stores and Supermarkets
13/09/2022,LT80,Guildhall-Meetings & Events,Laithwaites Wine,359.64,H30,Catering (taxable benefit),5921,"Package Stores, Beer, Wine, Liquor"
14/09/2022,EC37,PPS Independent Support,Amznmktplace,7.77,H45,Stationery,5999,Miscellaneous and Specialty Retail Stores
14/09/2022,MA69,Facilities Management,Ole And Steen Windsor 443,20.8,H30,Catering (taxable benefit),5462,Bakeries
14/09/2022,ML15,Public Relations,Contstant Contact,297,A77,Professional Subscriptions,5968,Direct Marketing Continuity Subscription Merchants
15/09/2022,MA74,Digital Printing IGEN,Plotterbase.Co.Uk,925.61,H11,Equipment Lease/Rental,7399,Other Business Services
15/09/2022,LR10,Braywick Nature Centre,Homebase Ltd,46,H10,Equipment Purchase,5200,Home Supply Warehouse Stores
15/09/2022,MA69,Facilities Management,Tesco Store 3404,13.05,H31,Catering (non-taxable benefit),5411,Grocery Stores and Supermarkets
15/09/2022,MA69,Facilities Management,McDonalds,21.65,H30,Catering (taxable benefit),5814,Quick Payment Service-Fast-Food Restaurants
15/09/2022,MB30,Planning Development Control,Rtpi,114,J46,Other Expenses,7997,"Clubs Country Clubs, Membership"
16/09/2022,MJ20,Civic & Mayoral Costs,Tfl Business Bops Web,27.5,G11,Vehicle Supplies,4784,Bridge/Road Fees & Tolls
16/09/2022,MY74,Learning and Development,Www.Charteredforesters,40,A70,Training - Non-Taxable Benefit,8699,"Organizations, Membership"
16/09/2022,MB30,Planning Development Control,Land Registry Ecom Ccc,6,J46,Other Expenses,9399,Government Services
16/09/2022,MA69,Facilities Management,Makro Self Service Readin,559.65,H31,Catering (non-taxable benefit),5300,Wholesale Clubs
16/09/2022,MB30,Planning Development Control,Land Registry Ecom Ccc,6,J46,Other Expenses,9399,Government Services
16/09/2022,MA69,Facilities Management,Tesco Store 3404,20.3,H31,Catering (non-taxable benefit),5411,Grocery Stores and Supermarkets
16/09/2022,MA69,Facilities Management,Costco Wholesale #114,34.74,H31,Catering (non-taxable benefit),7278,"Shopping Clubs, Services"
18/09/2022,MJ20,Civic & Mayoral Costs,Www.Masterchefwindsor.,117.2,J46,Other Expenses,5812,"Eating Places, Restaurants"
18/09/2022,MA69,Facilities Management,Tesco Store 3404,14.5,H31,Catering (non-taxable benefit),5411,Grocery Stores and Supermarkets
19/09/2022,MJ20,Civic & Mayoral Costs,Facebk 9sq4sgk2y2,700,J46,Other Expenses,7311,Advertising Services
19/09/2022,MJ20,Civic & Mayoral Costs,Facebk Rtke5hb2y2,700,J46,Other Expenses,7311,Advertising Services
19/09/2022,MJ20,Civic & Mayoral Costs,Woodys,400,J46,Other Expenses,5812,"Eating Places, Restaurants"
20/09/2022,AJ22,S E Library Management System,Se Strood To,15.35,G40,Staff Public Transport,4112,Passenger Railways
20/09/2022,AJ22,S E Library Management System,East Mids Railway,45,G40,Staff Public Transport,4112,Passenger Railways
20/09/2022,SVRS,Rough Sleepers,Mattressonline,130.63,H20,Client Personal Needs,5712,"Equipment, Furniture, and Home Furnishings Stores "
20/09/2022,SVRS,Rough Sleepers,Currys Online,338,H20,Client Personal Needs,5732,Electronic Sales
20/09/2022,LT50,Tourism Support,Facebk Fbm7hj7yc2,1.81,J46,Other Expenses,7311,Advertising Services
21/09/2022,MY37,Corporate I.T. - Networks,Amznmktplace,57.98,H91,Hardware,5999,Miscellaneous and Specialty Retail Stores
21/09/2022,LB18,Libraries-Maidenhead,Audible Uk,7.99,J46,Other Expenses,5968,Direct Marketing Continuity Subscription Merchants
21/09/2022,HE01,"MD/Strategic Director A,C & H",Solace Group,350,A77,Professional Subscriptions,8699,"Organizations, Membership"
22/09/2022,SVHM,Homelessness,Travelodge Gb0000,"1,608.25",K77,Client Temporary Accommodation,3615,Travelodge
23/09/2022,MT30,Registrar,Cartridge Save,448.28,H22,Materials,5111,"Stationery, Office Supplies and Writing Paper"
23/09/2022,SVHM,Homelessness,Travelodge Gb0000,420.17,K77,Client Temporary Accommodation,3615,Travelodge
24/09/2022,MJ30,Members Expenses,Zoom.Us 888-799-9666,122.93,J11,Corporate Subscriptions,4814,Telecommunication Services
26/09/2022,AJ22,S E Library Management System,Se Maidstone East Sst,30.2,G40,Staff Public Transport,4112,Passenger Railways
26/09/2022,LB18,Libraries-Maidenhead,St John Ambulance,28.74,F21,Health & Safety,8398,"Organizations, Charitable and Social Service"
27/09/2022,HE01,"MD/Strategic Director A,C & H",Tesco Stores 5135,61.05,H35,Refreshments,5411,Grocery Stores and Supermarkets
28/09/2022,CC65,"Refurbishment M'head, Windsor, Ascot , Eton Libs",Argos Ltd,160,Q50,Purchase of Furniture & Equipment (Capital Only),5310,Discount Stores
29/09/2022,CC65,"Refurbishment M'head, Windsor, Ascot , Eton Libs",Amznmktplace,209.94,Q50,Purchase of Furniture & Equipment (Capital Only),5999,Miscellaneous and Specialty Retail Stores
29/09/2022,AJ22,S E Library Management System,Se Strood To,54.1,G40,Staff Public Transport,4112,Passenger Railways
30/09/2022,MJ20,Civic & Mayoral Costs,Facebk 4b8tyht2y2,32.56,J46,Other Expenses,7311,Advertising Services
01/10/2022,EC37,PPS Independent Support,Patreon* Membership,5.44,J11,Corporate Subscriptions,5815,"Digital Goods - Media, Books, Movies, Music"
03/10/2022,EC37,PPS Independent Support,Foreign Exchange Fee,0.15,J81,Bank Charges,,
03/10/2022,MB01,Centralised Stationery,Hobbycraft Trading Limite,-19,H45,Stationery,5970,"Artist Supply Stores, Craft Shops"
03/10/2022,LR10,Braywick Nature Centre,Homebase Ltd,14.95,J46,Other Expenses,5200,Home Supply Warehouse Stores
03/10/2022,LR10,Braywick Nature Centre,Www.Screwfix.Com,34.96,J46,Other Expenses,5211,Lumber & Building Materials Stores
04/10/2022,CA17,Delivery of IT Equipment,Amazon.Co.Uk*mu24y55m5,73.11,Q62,Other IT Services (Capital Only),5969,Other Direct Marketing-Other Direct Marketers
05/10/2022,AJ55,Tree Team,Premier Inn44012665,82,J20,Conference Fees,3811,Premier Inn
05/10/2022,LB18,Libraries-Maidenhead,Amznmktplace,4.99,H10,Equipment Purchase,5999,Miscellaneous and Specialty Retail Stores
05/10/2022,AJ55,Tree Team,Www.Sorbus-Intl.Co,249.6,H10,Equipment Purchase,5211,Lumber & Building Materials Stores
05/10/2022,MH15,Highways & Transport Unit,Amznmktplace,7.99,H91,Hardware,5999,Miscellaneous and Specialty Retail Stores
05/10/2022,CA17,Delivery of IT Equipment,Amznmktplace,2.5,Q62,Other IT Services (Capital Only),5999,Miscellaneous and Specialty Retail Stores
06/10/2022,PT70,Road Safety,Halfords 0371,7.99,H10,Equipment Purchase,5940,Bicycle Shops-Sales and Service
06/10/2022,SVHM,Homelessness,Travelodge Gb0766,414.43,K77,Client Temporary Accommodation,3615,Travelodge
07/10/2022,CC65,"Refurbishment M'head, Windsor, Ascot , Eton Libs",Next Directory,865.8,J46,Other Expenses,5651,Clothing Stores
07/10/2022,MT30,Registrar,Cartridge Save,167.68,H10,Equipment Purchase,5111,"Stationery, Office Supplies and Writing Paper"
07/10/2022,LB18,Libraries-Maidenhead,Carrier Bag Shop,322.86,J44,Marketing/Promotions,5199,Other Nondurable Goods
07/10/2022,LB18,Libraries-Maidenhead,St John Ambulance,7.8,F21,Health & Safety,8398,"Organizations, Charitable and Social Service"
10/10/2022,EC37,PPS Independent Support,Contstant Contact,18,J11,Corporate Subscriptions,5968,Direct Marketing Continuity Subscription Merchants
10/10/2022,LT80,Guildhall-Meetings & Events,Amazon.Co.Uk*0n8ky04u5,62.59,H30,Catering (taxable benefit),5969,Other Direct Marketing-Other Direct Marketers
10/10/2022,NA11,Town Hall- Operations,Dura-Id Solutions,63.27,H10,Equipment Purchase,5943,"Office, School Supply, and Stationery Stores"
10/10/2022,LB12,Libraries-Dedworth,Hobbycraft Trading Limite,19.95,J46,Other Expenses,5970,"Artist Supply Stores, Craft Shops"
10/10/2022,SVHM,Homelessness,Www.Jctltd.Co.Uk,322,F17,Service Contracts,5942,Book Stores
10/10/2022,LT71,Tourism - VIC Information Windsor,Royal Mail Online Shop,208.1,J46,Other Expenses,9402,Postal Services - Government Only
11/10/2022,CC65,"Refurbishment M'head, Windsor, Ascot , Eton Libs",Spaceist Ltd,"2,629.20",H10,Equipment Purchase,5021,Office and Commercial Furniture
11/10/2022,CA17,Delivery of IT Equipment,Amznmktplace,5.99,Q62,Other IT Services (Capital Only),5999,Miscellaneous and Specialty Retail Stores
11/10/2022,SVHM,Homelessness,Travelodge Gb0000,88.72,K77,Client Temporary Accommodation,3615,Travelodge
12/10/2022,LT80,Guildhall-Meetings & Events,Waitrose 772,26.75,H30,Catering (taxable benefit),5411,Grocery Stores and Supermarkets
12/10/2022,CC65,"Refurbishment M'head, Windsor, Ascot , Eton Libs",Currys Online,219.99,Q50,Purchase of Furniture & Equipment (Capital Only),5732,Electronic Sales
12/10/2022,LT80,Guildhall-Meetings & Events,Makro Self Service Readin,85.43,H30,Catering (taxable benefit),5300,Wholesale Clubs
13/10/2022,LB12,Libraries-Dedworth,Baker Ross,19.85,J46,Other Expenses,5970,"Artist Supply Stores, Craft Shops"
13/10/2022,LV05,Heritage,Buyabattery Co Uk,100.99,J46,Other Expenses,5065,Electrical Parts and Equipment
13/10/2022,SVHM,Homelessness,Travelodge Gb0955,912.36,K77,Client Temporary Accommodation,3615,Travelodge
13/10/2022,NA11,Town Hall- Operations,First Rescue Train,"2,148.00",H10,Equipment Purchase,5399,Miscellaneous General Merchandise
13/10/2022,LR10,Braywick Nature Centre,Homebase Ltd,66.5,J46,Other Expenses,5200,Home Supply Warehouse Stores
14/10/2022,LB18,Libraries-Maidenhead,Amznmktplace,20.49,H10,Equipment Purchase,5999,Miscellaneous and Specialty Retail Stores
14/10/2022,MB30,Planning Development Control,Land Registry Ecom Ccc,6,J46,Other Expenses,9399,Government Services
14/10/2022,MB30,Planning Development Control,Land Registry Ecom Ccc,6,J46,Other Expenses,9399,Government Services
14/10/2022,ML15,Public Relations,Contstant Contact,342,A77,Professional Subscriptions,5968,Direct Marketing Continuity Subscription Merchants
14/10/2022,MB30,Planning Development Control,Land Registry Ecom Ccc,6,J46,Other Expenses,9399,Government Services
14/10/2022,LT80,Guildhall-Meetings & Events,Laithwaites Wine,127.92,H30,Catering (taxable benefit),5921,"Package Stores, Beer, Wine, Liquor"
14/10/2022,LR10,Braywick Nature Centre,Homebase Ltd,45,J46,Other Expenses,5200,Home Supply Warehouse Stores
17/10/2022,ML15,Public Relations,Axate,2,A77,Professional Subscriptions,5968,Direct Marketing Continuity Subscription Merchants
17/10/2022,MB38,Aboricultural / Tree Team (Planning),Cieem.Net,192,A77,Professional Subscriptions,8398,"Organizations, Charitable and Social Service"
18/10/2022,CC65,"Refurbishment M'head, Windsor, Ascot , Eton Libs",B & Q 1262,47.76,Q55,Other Expenses (Capital Only),5200,Home Supply Warehouse Stores
18/10/2022,MJ20,Civic & Mayoral Costs,Sp Rbl Poppy Appeal,500,J46,Other Expenses,8398,"Organizations, Charitable and Social Service"
18/10/2022,AJ22,S E Library Management System,Se Strood Sst,54.1,G40,Staff Public Transport,4112,Passenger Railways
18/10/2022,CC65,"Refurbishment M'head, Windsor, Ascot , Eton Libs",Homebase Ltd,75,Q55,Other Expenses (Capital Only),5200,Home Supply Warehouse Stores
19/10/2022,AJ22,S E Library Management System,East Mids Railway,4.3,G40,Staff Public Transport,4112,Passenger Railways
19/10/2022,MY74,Learning and Development,Cieem.Net,270,A70,Training - Non-Taxable Benefit,8398,"Organizations, Charitable and Social Service"
19/10/2022,AJ22,S E Library Management System,Se Barming Sst,36.8,G40,Staff Public Transport,4112,Passenger Railways
20/10/2022,SVHM,Homelessness,Travelodge Gb0000,"1,449.23",K77,Client Temporary Accommodation,3615,Travelodge
24/10/2022,LE10,Economic Development,Canva* I03583-18934479,99.99,J46,Other Expenses,7221,Photographic Studios
24/10/2022,MJ30,Members Expenses,Zoom.Us 888-799-9666,122.93,J11,Corporate Subscriptions,4814,Telecommunication Services
24/10/2022,LR10,Braywick Nature Centre,Tesco Store 3404,30.8,J47,Events & Activities,5411,Grocery Stores and Supermarkets
25/10/2022,MY74,Learning and Development,Epc The Hawkhills,"1,071.00",A70,Training - Non-Taxable Benefit,8220,"Colleges, Universities, Professional Schools"
25/10/2022,LT80,Guildhall-Meetings & Events,Unit 4 Brewery Tap,15.05,H31,Catering (non-taxable benefit),5813,"Bars, Cocktail Lounges, Discotheques, Nightclubs"
25/10/2022,MB30,Planning Development Control,Land Registry Ecom Ccc,6,J46,Other Expenses,9399,Government Services
25/10/2022,LT80,Guildhall-Meetings & Events,Laithwaites Wine,575.64,H30,Catering (taxable benefit),5921,"Package Stores, Beer, Wine, Liquor"
25/10/2022,LT80,Guildhall-Meetings & Events,Windsor And Eton Brewery,46.04,H30,Catering (taxable benefit),5921,"Package Stores, Beer, Wine, Liquor"
25/10/2022,MB30,Planning Development Control,Land Registry Ecom Ccc,3,J46,Other Expenses,9399,Government Services
25/10/2022,MB38,Aboricultural / Tree Team (Planning),Cieem.Net,74,A77,Professional Subscriptions,8398,"Organizations, Charitable and Social Service"
25/10/2022,AJ22,S E Library Management System,Se Online Web,48.3,G40,Staff Public Transport,4112,Passenger Railways
26/10/2022,MC36,Pensions Administration,Jiji,53.78,H31,Catering (non-taxable benefit),5812,"Eating Places, Restaurants"
26/10/2022,MY74,Learning and Development,Cieem.Net,230,A70,Training - Non-Taxable Benefit,8398,"Organizations, Charitable and Social Service"
27/10/2022,MB30,Planning Development Control,Land Registry Ecom Ccc,6,J46,Other Expenses,9399,Government Services
27/10/2022,MB01,Centralised Stationery,Stationery Uk,249.23,H45,Stationery,5943,"Office, School Supply, and Stationery Stores"
28/10/2022,SVHM,Homelessness,Travelodge Gb0000,160.1,K77,Client Temporary Accommodation,3615,Travelodge
28/10/2022,MJ20,Civic & Mayoral Costs,Beaconsfield Station T,24.3,G40,Staff Public Transport,4112,Passenger Railways
31/10/2022,SVHM,Homelessness,Travelodge Gb0000,389.56,K77,Client Temporary Accommodation,3615,Travelodge
01/11/2022,EC37,PPS Independent Support,Patreon* Membership,5.25,J11,Corporate Subscriptions,5815,"Digital Goods - Media, Books, Movies, Music"
01/11/2022,SVHM,Homelessness,Travelodge Gb0000,84.64,K77,Client Temporary Accommodation,3615,Travelodge
01/11/2022,MA87,Deputyship,Amznmktplace,156.6,H20,Client Personal Needs,5999,Miscellaneous and Specialty Retail Stores
01/11/2022,AJ22,S E Library Management System,Se Stratford Int Sst,4.3,G40,Staff Public Transport,4112,Passenger Railways
01/11/2022,LT80,Guildhall-Meetings & Events,Laithwaites Wine,406.05,H30,Catering (taxable benefit),5921,"Package Stores, Beer, Wine, Liquor"
02/11/2022,EC37,PPS Independent Support,Foreign Exchange Fee,0.14,J81,Bank Charges,,
03/11/2022,ML15,Public Relations,Marks&spencer Plc Saca,23.7,H31,Catering (non-taxable benefit),5411,Grocery Stores and Supermarkets
03/11/2022,SVHM,Homelessness,Travelodge Gb0000,50.98,K77,Client Temporary Accommodation,3615,Travelodge
03/11/2022,MH15,Highways & Transport Unit,Amznmktplace,63.88,H91,Hardware,5999,Miscellaneous and Specialty Retail Stores
03/11/2022,EC37,PPS Independent Support,Amazon.Co.Uk*zc0aa4z75,5.5,H45,Stationery,5969,Other Direct Marketing-Other Direct Marketers
04/11/2022,SVHM,Homelessness,Travelodge Gb0000,114.2,K77,Client Temporary Accommodation,3615,Travelodge
04/11/2022,MB30,Planning Development Control,Land Registry Ecom Ccc,6,J46,Other Expenses,9399,Government Services
07/11/2022,MB30,Planning Development Control,Land Registry Ecom Ccc,6,J46,Other Expenses,9399,Government Services
07/11/2022,MB30,Planning Development Control,Land Registry Ecom Ccc,6,J46,Other Expenses,9399,Government Services
07/11/2022,MT49,Community Warden Scheme,Amznmktplace,27.35,H10,Equipment Purchase,5999,Miscellaneous and Specialty Retail Stores
07/11/2022,SVHM,Homelessness,Travelodge Gb0000,61.18,K77,Client Temporary Accommodation,3615,Travelodge
08/11/2022,LR10,Braywick Nature Centre,Steane & Co,41.99,J46,Other Expenses,5251,Hardware Stores
08/11/2022,MJ20,Civic & Mayoral Costs,"Boots,maidenhead",21,J46,Other Expenses,5912,"Drug Stores, Pharmacies"
08/11/2022,MB30,Planning Development Control,Land Registry Ecom Ccc,6,J46,Other Expenses,9399,Government Services
08/11/2022,SVHM,Homelessness,Travelodge Gb0000,111.16,K77,Client Temporary Accommodation,3615,Travelodge
09/11/2022,SVHM,Homelessness,Travelodge Gb0000,136.66,K77,Client Temporary Accommodation,3615,Travelodge
09/11/2022,MT49,Community Warden Scheme,Amznmktplace,119,H10,Equipment Purchase,5999,Miscellaneous and Specialty Retail Stores
10/11/2022,MB30,Planning Development Control,Land Registry Ecom Ccc,6,J46,Other Expenses,9399,Government Services
10/11/2022,LR10,Braywick Nature Centre,Toolstation Uk,7.89,H10,Equipment Purchase,5251,Hardware Stores
10/11/2022,SVHM,Homelessness,Travelodge Gb0000,77.48,K77,Client Temporary Accommodation,3615,Travelodge
10/11/2022,EC37,PPS Independent Support,Contstant Contact,18,J11,Corporate Subscriptions,5968,Direct Marketing Continuity Subscription Merchants
11/11/2022,SVAT,Housing Policy Team Costs,Travelodge Gb0000,195.8,K77,Client Temporary Accommodation,3615,Travelodge
11/11/2022,MJ20,Civic & Mayoral Costs,Tesco Stores 2668,197.52,J46,Other Expenses,5411,Grocery Stores and Supermarkets
14/11/2022,MB01,Centralised Stationery,Stationery Uk,59.51,H45,Stationery,5943,"Office, School Supply, and Stationery Stores"
14/11/2022,MB01,Centralised Stationery,Stationeryu,82.63,H45,Stationery,5943,"Office, School Supply, and Stationery Stores"
14/11/2022,MB01,Centralised Stationery,Stationery Uk,90.4,H45,Stationery,5943,"Office, School Supply, and Stationery Stores"
14/11/2022,SVHM,Homelessness,Travelodge Gb0000,181.53,K77,Client Temporary Accommodation,3615,Travelodge
14/11/2022,LR10,Braywick Nature Centre,Www.Beautifulhomesdire,74,J46,Other Expenses,5719,Miscellaneous House Furnishing Specialty Shops
15/11/2022,LR10,Braywick Nature Centre,Cotswold Outdoor,153.5,J46,Other Expenses,5651,Clothing Stores
15/11/2022,LT80,Guildhall-Meetings & Events,Aldi 64 775,75.28,H31,Catering (non-taxable benefit),5411,Grocery Stores and Supermarkets
15/11/2022,LR10,Braywick Nature Centre,Snow & Rock,150,J46,Other Expenses,5999,Miscellaneous and Specialty Retail Stores
16/11/2022,SVHM,Homelessness,Travelodge Gb0000,"1,568.47",K77,Client Temporary Accommodation,3615,Travelodge
16/11/2022,SVHM,Homelessness,Travelodge Gb0000,355.92,K77,Client Temporary Accommodation,3615,Travelodge
17/11/2022,MB30,Planning Development Control,Land Registry Ecom Ccc,6,J46,Other Expenses,9399,Government Services
17/11/2022,MT49,Community Warden Scheme,Amznmktplace,5.85,H10,Equipment Purchase,5999,Miscellaneous and Specialty Retail Stores
17/11/2022,MY74,Learning and Development,Nuco Training Ltd.,170.39,A70,Training - Non-Taxable Benefit,8299,Other Schools and Educational Services
17/11/2022,LR10,Braywick Nature Centre,Solar Together 2022,150,J46,Other Expenses,5732,Electronic Sales
17/11/2022,MT49,Community Warden Scheme,Amznmktplace,32.65,H10,Equipment Purchase,5999,Miscellaneous and Specialty Retail Stores
17/11/2022,LR10,Braywick Nature Centre,Www.Trekitt.Co.Uk,22.53,J46,Other Expenses,5691,Mens and Womens Clothing Stores
18/11/2022,LT80,Guildhall-Meetings & Events,Waitrose 772,59.25,H30,Catering (taxable benefit),5411,Grocery Stores and Supermarkets
18/11/2022,MT49,Community Warden Scheme,Amznmktplace,111.15,H10,Equipment Purchase,5999,Miscellaneous and Specialty Retail Stores
18/11/2022,MT49,Community Warden Scheme,Amznmktplace,311.2,H10,Equipment Purchase,5999,Miscellaneous and Specialty Retail Stores
19/11/2022,LT80,Guildhall-Meetings & Events,Robert Dyas Windsor,66.94,H10,Equipment Purchase,5251,Hardware Stores
22/11/2022,SVHM,Homelessness,Argos Ltd,480,H10,Equipment Purchase,5310,Discount Stores
22/11/2022,LR10,Braywick Nature Centre,Www.Screwfix.Com,38.99,H10,Equipment Purchase,5211,Lumber & Building Materials Stores
22/11/2022,MJ20,Civic & Mayoral Costs,Beaconsfield Sstp,43.8,G40,Staff Public Transport,4112,Passenger Railways
22/11/2022,MJ20,Civic & Mayoral Costs,Sq *wycombe Wanderers Foo,852,J46,Other Expenses,7929,"Bands, Orchestras, and Miscellaneous Entertainers"
22/11/2022,MB01,Centralised Stationery,Amznmktplace,161.09,H45,Stationery,5999,Miscellaneous and Specialty Retail Stores
22/11/2022,SVHM,Homelessness,Travelodge Gb0000,89.74,K77,Client Temporary Accommodation,3615,Travelodge
22/11/2022,MJ20,Civic & Mayoral Costs,Sq *wycombe Wanderers Foo,900,J46,Other Expenses,7929,"Bands, Orchestras, and Miscellaneous Entertainers"
22/11/2022,MT10,Legal Services,Post Office Counter,15.3,J46,Other Expenses,9402,Postal Services - Government Only
23/11/2022,SVHM,Homelessness,Travelodge Gb0000,71.38,K77,Client Temporary Accommodation,3615,Travelodge
23/11/2022,LR10,Braywick Nature Centre,Tally Ho Farm Limited,4.85,J46,Other Expenses,5995,Pet Shops-Pet Food and Supplies
23/11/2022,MA51,Democratic Services,Argos Maidenhead,7.5,H10,Equipment Purchase,5310,Discount Stores
23/11/2022,LR10,Braywick Nature Centre,Tally Ho Farm Limited,4.85,J46,Other Expenses,5995,Pet Shops-Pet Food and Supplies
23/11/2022,SVHM,Homelessness,Travelodge Gb0000,66.28,K77,Client Temporary Accommodation,3615,Travelodge
23/11/2022,LB18,Libraries-Maidenhead,First Rescue Train,101.94,H10,Equipment Purchase,5399,Miscellaneous General Merchandise
24/11/2022,MA74,Digital Printing IGEN,Stationery Uk,"1,071.03",H40,Photocopying/Microfilming,5943,"Office, School Supply, and Stationery Stores"
24/11/2022,MB01,Centralised Stationery,Stationery Uk,130.18,H45,Stationery,5943,"Office, School Supply, and Stationery Stores"
24/11/2022,MB01,Centralised Stationery,Stationery Uk,109.11,H45,Stationery,5943,"Office, School Supply, and Stationery Stores"
24/11/2022,MB30,Planning Development Control,Land Registry Ecom Ccc,6,J46,Other Expenses,9399,Government Services
24/11/2022,MJ30,Members Expenses,Zoom.Us 888-799-9666,122.93,J11,Corporate Subscriptions,4814,Telecommunication Services
24/11/2022,MT49,Community Warden Scheme,Amznmktplace,6.73,H10,Equipment Purchase,5999,Miscellaneous and Specialty Retail Stores
24/11/2022,MB30,Planning Development Control,Land Registry Ecom Ccc,6,J46,Other Expenses,9399,Government Services
24/11/2022,MB30,Planning Development Control,Land Registry Ecom Ccc,6,J46,Other Expenses,9399,Government Services
24/11/2022,EC37,PPS Independent Support,Amazon.Co.Uk*1i0372464,6.41,H45,Stationery,5969,Other Direct Marketing-Other Direct Marketers
25/11/2022,LB18,Libraries-Maidenhead,Automania Commercials,422.83,J46,Other Expenses,7538,Automotive Service Shops
25/11/2022,SVRS,Rough Sleepers,Currys Online,278,H20,Client Personal Needs,5732,Electronic Sales
25/11/2022,MT49,Community Warden Scheme,Amznmktplace,59.68,H10,Equipment Purchase,5999,Miscellaneous and Specialty Retail Stores
25/11/2022,MT49,Community Warden Scheme,Amznmktplace,31.52,H10,Equipment Purchase,5999,Miscellaneous and Specialty Retail Stores
25/11/2022,MT49,Community Warden Scheme,Amznmktplace,104.85,H10,Equipment Purchase,5999,Miscellaneous and Specialty Retail Stores
28/11/2022,MB30,Planning Development Control,Post Office Self Serve,4.7,J46,Other Expenses,9402,Postal Services - Government Only
28/11/2022,SVHM,Homelessness,Travelodge Gb0000,61.18,K77,Client Temporary Accommodation,3615,Travelodge
28/11/2022,MB30,Planning Development Control,Post Office Self Serve,3.45,J46,Other Expenses,9402,Postal Services - Government Only
28/11/2022,MB30,Planning Development Control,Post Office Self Serve,3.45,J46,Other Expenses,9402,Postal Services - Government Only
28/11/2022,MB30,Planning Development Control,Post Office Self Serve,3.45,J46,Other Expenses,9402,Postal Services - Government Only
28/11/2022,SVRS,Rough Sleepers,Argos Ltd,92.95,H20,Client Personal Needs,5310,Discount Stores
29/11/2022,ML15,Public Relations,Axate,2,A77,Professional Subscriptions,5968,Direct Marketing Continuity Subscription Merchants
29/11/2022,LT80,Guildhall-Meetings & Events,4imprint Direct Ltd,"1,452.00",H22,Materials,5999,Miscellaneous and Specialty Retail Stores
29/11/2022,MY74,Learning and Development,Qa.Com,"2,172.00",A70,Training - Non-Taxable Benefit,8299,Other Schools and Educational Services
29/11/2022,ML15,Public Relations,Contstant Contact,169,A77,Professional Subscriptions,5968,Direct Marketing Continuity Subscription Merchants
30/11/2022,LE10,Economic Development,Built Environment Netw,"1,332.00",J46,Other Expenses,7399,Other Business Services
30/11/2022,LT80,Guildhall-Meetings & Events,Laithwaites Wine,241.2,H30,Catering (taxable benefit),5921,"Package Stores, Beer, Wine, Liquor"
30/11/2022,MY37,Corporate I.T. - Networks,Aql.Com,532.8,H80,Communication,4814,Telecommunication Services
30/11/2022,MJ20,Civic & Mayoral Costs,Laithwaites Wine,466.56,J46,Other Expenses,5921,"Package Stores, Beer, Wine, Liquor"
30/11/2022,LT80,Guildhall-Meetings & Events,Www.Nisbets.Com,643.18,H10,Equipment Purchase,5964,Direct Marketing Catalog Merchants
30/11/2022,LT80,Guildhall-Meetings & Events,Marks&spencer Plc,9,H31,Catering (non-taxable benefit),5411,Grocery Stores and Supermarkets
01/12/2022,EC37,PPS Independent Support,Help For Psychology,25,A70,Training - Non-Taxable Benefit,7399,Other Business Services
01/12/2022,EC37,PPS Independent Support,Patreon* Membership,4.98,J11,Corporate Subscriptions,5815,"Digital Goods - Media, Books, Movies, Music"
02/12/2022,EC37,PPS Independent Support,Foreign Exchange Fee,0.14,J81,Bank Charges,,
02/12/2022,MC36,Pensions Administration,Trainline.Com,33.19,G39,Client Public Transport,4112,Passenger Railways
02/12/2022,ML15,Public Relations,Axate,3,A77,Professional Subscriptions,5968,Direct Marketing Continuity Subscription Merchants
02/12/2022,SCCM,Capacity Management,Gotocom*gotoassist,448.8,J41,Licences (Expend),5968,Direct Marketing Continuity Subscription Merchants
02/12/2022,MC36,Pensions Administration,Hotel At Booking.Com,76.5,K77,Client Temporary Accommodation,7011,"Hotels, Motels, Resorts"
02/12/2022,SVHM,Homelessness,Travelodge Gb0000,187.64,K77,Client Temporary Accommodation,3615,Travelodge
06/12/2022,MY74,Learning and Development,Westminster Insight,745.2,A70,Training - Non-Taxable Benefit,5815,"Digital Goods - Media, Books, Movies, Music"
07/12/2022,LR10,Braywick Nature Centre,Halfords 0371,3,J46,Other Expenses,5940,Bicycle Shops-Sales and Service
07/12/2022,SVHM,Homelessness,Hotel At Booking.Com,56.1,K77,Client Temporary Accommodation,7011,"Hotels, Motels, Resorts"
07/12/2022,MC36,Pensions Administration,Tfl Travel Ch,1.65,J46,Other Expenses,4111,Local and Suburban Commuter Transportation
07/12/2022,MC36,Pensions Administration,Sumup *bournemouth Tax,7.6,J20,Conference Fees,4121,Taxi Services
08/12/2022,EC37,PPS Independent Support,Sainsburys S/mkts,9.2,H35,Refreshments,5411,Grocery Stores and Supermarkets
09/12/2022,MC36,Pensions Administration,Tfl Travel Ch,1.65,J46,Other Expenses,4111,Local and Suburban Commuter Transportation
09/12/2022,MC36,Pensions Administration,Uber *trip,6.91,J20,Conference Fees,4121,Taxi Services
10/12/2022,EC37,PPS Independent Support,Contstant Contact,18,J11,Corporate Subscriptions,5968,Direct Marketing Continuity Subscription Merchants
12/12/2022,SVHM,Homelessness,Argos Ltd,240,H16,Furniture,5310,Discount Stores
12/12/2022,SHRU,Homes for Ukraine,Argos Ltd,490,H16,Furniture,5310,Discount Stores
13/12/2022,MY74,Learning and Development,L B Camden Int,246.5,A70,Training - Non-Taxable Benefit,9399,Government Services
13/12/2022,SHRU,Homes for Ukraine,Argos Ltd,213.95,H16,Furniture,5310,Discount Stores
13/12/2022,SVHM,Homelessness,Travelodge Gb0000,"1,267.57",K77,Client Temporary Accommodation,3615,Travelodge
13/12/2022,MB30,Planning Development Control,Land Registry Ecom Ccc,6,J46,Other Expenses,9399,Government Services
14/12/2022,MT49,Community Warden Scheme,Amznmktplace,14.98,H10,Equipment Purchase,5999,Miscellaneous and Specialty Retail Stores
14/12/2022,SVRS,Rough Sleepers,Abri,284.08,H20,Client Personal Needs,9399,Government Services
14/12/2022,SVHM,Homelessness,Travelodge Gb0000,237.61,K77,Client Temporary Accommodation,3615,Travelodge
14/12/2022,MT49,Community Warden Scheme,Sp Patrolstore,131.97,H10,Equipment Purchase,5399,Miscellaneous General Merchandise
14/12/2022,ML15,Public Relations,Contstant Contact,169,A77,Professional Subscriptions,5968,Direct Marketing Continuity Subscription Merchants
19/12/2022,SVHM,Homelessness,Travelodge Gb0000,189.68,K77,Client Temporary Accommodation,3615,Travelodge
19/12/2022,PC99,Car Parks Contractor,Homebase Ltd,46,H10,Equipment Purchase,5200,Home Supply Warehouse Stores
19/12/2022,MJ20,Civic & Mayoral Costs,Www.Reading.Gov,35,G11,Vehicle Supplies,9399,Government Services
21/12/2022,LT80,Guildhall-Meetings & Events,W J Daniel & Co,39.98,H10,Equipment Purchase,5311,Department Stores
22/12/2022,SVRS,Rough Sleepers,Argos Ltd,192.95,H16,Furniture,5310,Discount Stores
22/12/2022,SVRS,Rough Sleepers,Currys Online,348,H20,Client Personal Needs,5732,Electronic Sales
23/12/2022,SVRS,Rough Sleepers,Argos Ltd,-99,H16,Furniture,5310,Discount Stores
24/12/2022,MJ30,Members Expenses,Zoom.Gbp,110.94,J11,Corporate Subscriptions,5968,Direct Marketing Continuity Subscription Merchants
29/12/2022,PQ41,Burial of the Dead,R B W M,22,J60,Professional Fees,9311,Tax Payments
01/01/2023,MA53,Mayoral & Civic,Mace-Bearers Subs,10,A77,Professional Subscriptions,8641,"Associations-Civic, Social, and Fraternal"
01/01/2023,EC37,PPS Independent Support,Patreon* Membership,5,J11,Corporate Subscriptions,5815,"Digital Goods - Media, Books, Movies, Music"
03/01/2023,EC37,PPS Independent Support,Foreign Exchange Fee,0.14,J81,Bank Charges,,
05/01/2023,LT80,Guildhall-Meetings & Events,Makro Self Service Readin,23.98,H10,Equipment Purchase,5300,Wholesale Clubs
09/01/2023,MB01,Centralised Stationery,Stationery Uk,259.11,H45,Stationery,5943,"Office, School Supply, and Stationery Stores"
09/01/2023,LE10,Economic Development,Gambling Commission,235,J46,Other Expenses,9399,Government Services
10/01/2023,MA69,Facilities Management,Stationery Uk,18.99,H10,Equipment Purchase,5943,"Office, School Supply, and Stationery Stores"
10/01/2023,EC37,PPS Independent Support,Contstant Contact,18,J11,Corporate Subscriptions,5968,Direct Marketing Continuity Subscription Merchants
10/01/2023,MA69,Facilities Management,Sainsburys S/mkts,4.95,H31,Catering (non-taxable benefit),5411,Grocery Stores and Supermarkets
10/01/2023,NA11,Town Hall- Operations,Bt Business Bill,72.68,H80,Communication,4814,Telecommunication Services
11/01/2023,AJ22,S E Library Management System,Se Strood To,19.9,G40,Staff Public Transport,4112,Passenger Railways
12/01/2023,SVRS,Rough Sleepers,Argos Maidenhead,64,H20,Client Personal Needs,5310,Discount Stores
12/01/2023,MA69,Facilities Management,Waitrose 194,28.5,H31,Catering (non-taxable benefit),5411,Grocery Stores and Supermarkets
12/01/2023,AK81,Postage - Rechargeable,Post Office Counter,30.55,H45,Stationery,9402,Postal Services - Government Only
12/01/2023,EC37,PPS Independent Support,Amznmktplace,23.01,H45,Stationery,5999,Miscellaneous and Specialty Retail Stores
13/01/2023,MJ20,Civic & Mayoral Costs,Marks&spencer Plc,184,J01,Clothing & Uniforms,5411,Grocery Stores and Supermarkets
13/01/2023,MA74,Digital Printing IGEN,Stationeryu,"1,070.88",H40,Photocopying/Microfilming,5943,"Office, School Supply, and Stationery Stores"
14/01/2023,MC36,Pensions Administration,Uber *trip,25.99,G40,Staff Public Transport,4121,Taxi Services
14/01/2023,ML15,Public Relations,Contstant Contact,169,A77,Professional Subscriptions,5968,Direct Marketing Continuity Subscription Merchants
16/01/2023,PX01,Trading Standards,Sports Grounds Safety,200,J46,Other Expenses,9399,Government Services
16/01/2023,MB01,Centralised Stationery,Stationery Uk,46.36,H45,Stationery,5943,"Office, School Supply, and Stationery Stores"
16/01/2023,LR10,Braywick Nature Centre,Www.Screwfix.Com,216.95,H10,Equipment Purchase,5211,Lumber & Building Materials Stores
17/01/2023,MY74,Learning and Development,Eb *biodiversity Net G,25,A70,Training - Non-Taxable Benefit,7399,Other Business Services
17/01/2023,AK81,Postage - Rechargeable,Post Office Counter,6.98,H70,Postage,9402,Postal Services - Government Only
17/01/2023,MY74,Learning and Development,Eb *biodiversity Net G,25,A70,Training - Non-Taxable Benefit,7399,Other Business Services
17/01/2023,MY74,Learning and Development,Eb *biodiversity Net G,25,A70,Training - Non-Taxable Benefit,7399,Other Business Services
17/01/2023,LB80,Libraries-Replacement System,Amznmktplace,5.59,H91,Hardware,5999,Miscellaneous and Specialty Retail Stores
18/01/2023,MT49,Community Warden Scheme,Amznmktplace,17.39,H10,Equipment Purchase,5999,Miscellaneous and Specialty Retail Stores
18/01/2023,MC36,Pensions Administration,Gwr Maidenhead To,4.9,G39,Client Public Transport,4112,Passenger Railways
18/01/2023,AK81,Postage - Rechargeable,Post Office Counter,9.8,H70,Postage,9402,Postal Services - Government Only
18/01/2023,MB30,Planning Development Control,Land Registry Ecom Ccc,6,J46,Other Expenses,9399,Government Services
18/01/2023,MB30,Planning Development Control,Land Registry Ecom Ccc,6,J46,Other Expenses,9399,Government Services
19/01/2023,EC37,PPS Independent Support,Sainsburys S/mkts,8,H35,Refreshments,5411,Grocery Stores and Supermarkets
19/01/2023,EC37,PPS Independent Support,Sainsburys S/mkts,16.04,H35,Refreshments,5411,Grocery Stores and Supermarkets
19/01/2023,LB18,Libraries-Maidenhead,Amznmktplace,18.39,H10,Equipment Purchase,5999,Miscellaneous and Specialty Retail Stores
19/01/2023,LB18,Libraries-Maidenhead,Horsebox Supplies,18.55,H10,Equipment Purchase,4789,Other Transportation Services
19/01/2023,MB30,Planning Development Control,Land Registry Ecom Ccc,6,J46,Other Expenses,9399,Government Services
19/01/2023,AK81,Postage - Rechargeable,Post Office Counter,32.17,H70,Postage,9402,Postal Services - Government Only
20/01/2023,MC36,Pensions Administration,London Stock Exchange Lei,156,J42,Legal Fees,8999,Professional Services
20/01/2023,AK81,Postage - Rechargeable,Post Office Counter,4.9,H70,Postage,9402,Postal Services - Government Only
21/01/2023,MJ20,Civic & Mayoral Costs,Valette,34.1,J01,Clothing & Uniforms,7216,Dry Cleaners
23/01/2023,NA11,Town Hall- Operations,The Chair Clinic Limited,792,H10,Equipment Purchase,5021,Office and Commercial Furniture
23/01/2023,MY74,Learning and Development,Www.Advancetraininguk.,439.98,A70,Training - Non-Taxable Benefit,8299,Other Schools and Educational Services
23/01/2023,LB18,Libraries-Maidenhead,Paypal *cleaningsup,24.97,H10,Equipment Purchase,5169,Other Chemicals and Allied Products
23/01/2023,SVRS,Rough Sleepers,Currys Online,343,H16,Furniture,5732,Electronic Sales
24/01/2023,AK81,Postage - Rechargeable,Post Office Counter,39.95,H70,Postage,9402,Postal Services - Government Only
24/01/2023,SVHM,Homelessness,Travelodge Gb0000,175.41,K77,Client Temporary Accommodation,3615,Travelodge
25/01/2023,SVHM,Homelessness,Premier Inn,127.5,K77,Client Temporary Accommodation,3811,Premier Inn
25/01/2023,MJ30,Members Expenses,Zoom.Us 888-799-9666,110.94,J11,Corporate Subscriptions,4814,Telecommunication Services
25/01/2023,MC36,Pensions Administration,Gwr Maidenhead To,47.3,G39,Client Public Transport,4112,Passenger Railways
25/01/2023,LT80,Guildhall-Meetings & Events,Booker Ltd - 38603524,169.84,H30,Catering (taxable benefit),5411,Grocery Stores and Supermarkets
25/01/2023,AK81,Postage - Rechargeable,Post Office Counter,14.32,H70,Postage,9402,Postal Services - Government Only
25/01/2023,LT80,Guildhall-Meetings & Events,Laithwaites Wine,194.4,H30,Catering (taxable benefit),5921,"Package Stores, Beer, Wine, Liquor"
25/01/2023,LT80,Guildhall-Meetings & Events,Laithwaites Wine,"1,310.70",H30,Catering (taxable benefit),5921,"Package Stores, Beer, Wine, Liquor"
26/01/2023,LT80,Guildhall-Meetings & Events,Laithwaites Wine,408.72,H30,Catering (taxable benefit),5921,"Package Stores, Beer, Wine, Liquor"
26/01/2023,LT80,Guildhall-Meetings & Events,Windsor And Eton Brewery,123.66,H30,Catering (taxable benefit),5921,"Package Stores, Beer, Wine, Liquor"
26/01/2023,NB01,Tinkers Lane - Buildings,Homebase Ltd,32,H10,Equipment Purchase,5200,Home Supply Warehouse Stores
26/01/2023,MJ20,Civic & Mayoral Costs,Sq *wycombe Wanderers Sho,648,J46,Other Expenses,5655,"Sports Apparel, Riding Apparel Stores"
26/01/2023,SVHM,Homelessness,Travelodge Gb0000,597.51,K77,Client Temporary Accommodation,3615,Travelodge
26/01/2023,NB01,Tinkers Lane - Buildings,Powersupplyshop.Co.Uk,17.94,E10,Equipment Purchase/Repair,5732,Electronic Sales
27/01/2023,AK81,Postage - Rechargeable,Post Office Counter,9.29,H70,Postage,9402,Postal Services - Government Only
27/01/2023,SVHM,Homelessness,Argos Ltd,212.95,H16,Furniture,5310,Discount Stores
27/01/2023,SVHM,Homelessness,Argos Ltd,280,H16,Furniture,5310,Discount Stores
30/01/2023,SVHM,Homelessness,Argos Ltd,-209,H16,Furniture,5310,Discount Stores
30/01/2023,SVHM,Homelessness,Argos Ltd,-3.95,H16,Furniture,5310,Discount Stores
30/01/2023,AK81,Postage - Rechargeable,Post Office Counter,4.53,H70,Postage,9402,Postal Services - Government Only
30/01/2023,PT60,Transport Policy & Planning,Halfords 0371,300,H10,Equipment Purchase,5940,Bicycle Shops-Sales and Service
30/01/2023,NA11,Town Hall- Operations,Marks&spencer Plc Saca,1.65,H31,Catering (non-taxable benefit),5411,Grocery Stores and Supermarkets
30/01/2023,LC10,Cemeteries & Churchyards,Amazon.Co.Uk*1o4md5h94,13.96,H10,Equipment Purchase,5969,Other Direct Marketing-Other Direct Marketers
30/01/2023,LB18,Libraries-Maidenhead,Amznmktplace,22.19,H10,Equipment Purchase,5999,Miscellaneous and Specialty Retail Stores
30/01/2023,LE10,Economic Development,Net World Sports,514.42,J46,Other Expenses,5999,Miscellaneous and Specialty Retail Stores
30/01/2023,SVHM,Homelessness,Argos Ltd,-280,H16,Furniture,5310,Discount Stores
30/01/2023,ML15,Public Relations,Axate,3,A77,Professional Subscriptions,5968,Direct Marketing Continuity Subscription Merchants
30/01/2023,LE10,Economic Development,Amznmktplace,28.24,J46,Other Expenses,5999,Miscellaneous and Specialty Retail Stores
30/01/2023,SVHM,Homelessness,Travelodge Gb0000,50.98,K77,Client Temporary Accommodation,3615,Travelodge
30/01/2023,MC36,Pensions Administration,Uber *trip,-25.99,J20,Conference Fees,4121,Taxi Services
30/01/2023,MA87,Deputyship,Odeon Cinemas,125,H20,Client Personal Needs,7832,Motion Picture Theaters
31/01/2023,MA52,Elections,Hilton Birmingham Metr,27,J46,Other Expenses,7011,"Hotels, Motels, Resorts"
31/01/2023,MT49,Community Warden Scheme,Amznmktplace,20.37,H10,Equipment Purchase,5999,Miscellaneous and Specialty Retail Stores
31/01/2023,EC6D,SEN Special School,Amznmktplace,179.94,H10,Equipment Purchase,5999,Miscellaneous and Specialty Retail Stores
31/01/2023,SVHM,Homelessness,Travelodge Gb0000,528.23,K77,Client Temporary Accommodation,3615,Travelodge
31/01/2023,LC10,Cemeteries & Churchyards,Amazon.Co.Uk*1o75z96q4,29.08,H10,Equipment Purchase,5969,Other Direct Marketing-Other Direct Marketers
31/01/2023,AK81,Postage - Rechargeable,Post Office Counter,22.88,H70,Postage,9402,Postal Services - Government Only
01/02/2023,EC26,"Information, Advice and Support Service",Patreon* Membership,4.89,J11,Corporate Subscriptions,5815,"Digital Goods - Media, Books, Movies, Music"
01/02/2023,MB30,Planning Development Control,Land Registry Ecom Ccc,6,J46,Other Expenses,9399,Government Services
01/02/2023,ML15,Public Relations,Axate,2,A77,Professional Subscriptions,5968,Direct Marketing Continuity Subscription Merchants
01/02/2023,AK81,Postage - Rechargeable,Post Office Counter,36.71,H70,Postage,9402,Postal Services - Government Only
02/02/2023,EC26,"Information, Advice and Support Service",Foreign Exchange Fee,0.13,J81,Bank Charges,,
02/02/2023,LR10,Braywick Nature Centre,Halfords 0371,28,H10,Equipment Purchase,5940,Bicycle Shops-Sales and Service
02/02/2023,MB30,Planning Development Control,Land Registry Ecom Ccc,3,J46,Other Expenses,9399,Government Services
03/02/2023,AK81,Postage - Rechargeable,Post Office Counter,16.64,H70,Postage,9402,Postal Services - Government Only
03/02/2023,AK81,Postage - Rechargeable,Post Office Counter,7.21,H70,Postage,9402,Postal Services - Government Only
03/02/2023,SVHM,Homelessness,Travelodge Gb0000,357.44,K77,Client Temporary Accommodation,3615,Travelodge
06/02/2023,MT49,Community Warden Scheme,Amznmktplace,9.47,H10,Equipment Purchase,5999,Miscellaneous and Specialty Retail Stores
06/02/2023,LB18,Libraries-Maidenhead,Amznmktplace,6.99,H10,Equipment Purchase,5999,Miscellaneous and Specialty Retail Stores
06/02/2023,AK81,Postage - Rechargeable,Post Office Counter,29.66,H70,Postage,9402,Postal Services - Government Only
07/02/2023,MT49,Community Warden Scheme,Amznmktplace,10.99,H10,Equipment Purchase,5999,Miscellaneous and Specialty Retail Stores
07/02/2023,MC36,Pensions Administration,Gwr Reading To,10.05,G39,Client Public Transport,4112,Passenger Railways
08/02/2023,MH33,Environmental Protection,The-Ies.Org,100,A70,Training - Non-Taxable Benefit,8699,"Organizations, Membership"
09/02/2023,MJ40,Elections -District,Amznmktplace,"1,133.24",H10,Equipment Purchase,5999,Miscellaneous and Specialty Retail Stores
09/02/2023,MT49,Community Warden Scheme,Sp Patrolstore,76.98,H10,Equipment Purchase,5399,Miscellaneous General Merchandise
09/02/2023,AK81,Postage - Rechargeable,Post Office Counter,78.4,H70,Postage,9402,Postal Services - Government Only
09/02/2023,MJ40,Elections -District,Amznmktplace,207.91,H10,Equipment Purchase,5999,Miscellaneous and Specialty Retail Stores
09/02/2023,MJ40,Elections -District,Amznmktplace,12.99,H10,Equipment Purchase,5999,Miscellaneous and Specialty Retail Stores
09/02/2023,MC36,Pensions Administration,Gwr Reading To,4.4,G39,Client Public Transport,4112,Passenger Railways
10/02/2023,EC37,PPS Independent Support,Amznmktplace,3.99,E10,Equipment Purchase/Repair,5999,Miscellaneous and Specialty Retail Stores
10/02/2023,SVHM,Homelessness,Argos Ltd,200,H16,Furniture,5310,Discount Stores
10/02/2023,NA11,Town Hall- Operations,Bt Business Bill,38.63,H80,Communication,4814,Telecommunication Services
10/02/2023,EC37,PPS Independent Support,Eig*constantcontact.Com,18,J11,Corporate Subscriptions,5968,Direct Marketing Continuity Subscription Merchants
10/02/2023,SVHM,Homelessness,Travelodge Gb0000,148.88,K77,Client Temporary Accommodation,3615,Travelodge
13/02/2023,MC36,Pensions Administration,Gwr Reading Sst,5.1,G39,Client Public Transport,4112,Passenger Railways
13/02/2023,AJ22,S E Library Management System,Se Online Web,46.8,G40,Staff Public Transport,4112,Passenger Railways
13/02/2023,AJ22,S E Library Management System,Se Strood To,54.1,G40,Staff Public Transport,4112,Passenger Railways
14/02/2023,MT49,Community Warden Scheme,Amznmktplace,22.36,H10,Equipment Purchase,5999,Miscellaneous and Specialty Retail Stores
14/02/2023,ML15,Public Relations,Contstant Contact,169,A77,Professional Subscriptions,5968,Direct Marketing Continuity Subscription Merchants
14/02/2023,MT49,Community Warden Scheme,Amazon.Co.Uk*138cy6fk4,20.9,H10,Equipment Purchase,5969,Other Direct Marketing-Other Direct Marketers
14/02/2023,MA30,HR Strategic,C2e844600288v Ukvi,"3,199.00",J46,Other Expenses,9399,Government Services
14/02/2023,MB30,Planning Development Control,Land Registry Ecom Ccc,6,J46,Other Expenses,9399,Government Services
14/02/2023,LB70,Libraries-Stock Fund,Amazon.Co.Uk*133n56fn4,31.96,H46,Books & Publications,5969,Other Direct Marketing-Other Direct Marketers
15/02/2023,MA69,Facilities Management,Premier Inn,103.5,J46,Other Expenses,3811,Premier Inn
15/02/2023,LT80,Guildhall-Meetings & Events,Laithwaites Wine,371.76,H30,Catering (taxable benefit),5921,"Package Stores, Beer, Wine, Liquor"
15/02/2023,NA11,Town Hall- Operations,Marks&spencer Plc Saca,1.65,H31,Catering (non-taxable benefit),5411,Grocery Stores and Supermarkets
15/02/2023,AK81,Postage - Rechargeable,Post Office Counter,31.57,H70,Postage,9402,Postal Services - Government Only
16/02/2023,MB01,Centralised Stationery,Stationeryu,127.96,H45,Stationery,5943,"Office, School Supply, and Stationery Stores"
16/02/2023,MY74,Learning and Development,Eb *opening Doors Ensu,84,A70,Training - Non-Taxable Benefit,7399,Other Business Services
17/02/2023,AK81,Postage - Rechargeable,Post Office Counter,41.89,H70,Postage,9402,Postal Services - Government Only
20/02/2023,AK81,Postage - Rechargeable,Post Office Counter,9.58,H70,Postage,9402,Postal Services - Government Only
20/02/2023,MB30,Planning Development Control,Land Registry Ecom Ccc,6,J46,Other Expenses,9399,Government Services
21/02/2023,LB18,Libraries-Maidenhead,Paypal *tribalsigns,54.15,J46,Other Expenses,7392,"Consulting, Management, and PR Services"
21/02/2023,LR10,Braywick Nature Centre,Www.First4magnets.Com,9.83,H10,Equipment Purchase,5999,Miscellaneous and Specialty Retail Stores
21/02/2023,AK81,Postage - Rechargeable,Post Office Counter,10.4,H70,Postage,9402,Postal Services - Government Only
21/02/2023,LR10,Braywick Nature Centre,Www.Screwfix.Com,50.93,H10,Equipment Purchase,5211,Lumber & Building Materials Stores
21/02/2023,LR10,Braywick Nature Centre,Www.Fireprotectionshop,34.19,H10,Equipment Purchase,5999,Miscellaneous and Specialty Retail Stores
22/02/2023,MB30,Planning Development Control,Land Registry Ecom Ccc,6,J46,Other Expenses,9399,Government Services
22/02/2023,MB30,Planning Development Control,Land Registry Ecom Ccc,6,J46,Other Expenses,9399,Government Services
22/02/2023,MC36,Pensions Administration,Gwr Maidenhead To,38.6,G39,Client Public Transport,4112,Passenger Railways
22/02/2023,PB30,Building Control - Chargeable,Arco Limited,86.4,J01,Clothing & Uniforms,5085,Other Industrial Supplies
23/02/2023,EC26,"Information, Advice and Support Service",Sainsburys S/mkts,1.65,H35,Refreshments,5411,Grocery Stores and Supermarkets
23/02/2023,MA52,Elections,High St Car Park,4.8,J46,Other Expenses,7523,Automobile Parking Lots and Garages
23/02/2023,SVHM,Homelessness,Www.Sandwell.Gov.Uk,11,J46,Other Expenses,9399,Government Services
23/02/2023,AK81,Postage - Rechargeable,Post Office Self Serve,6.88,H70,Postage,9402,Postal Services - Government Only
23/02/2023,MA52,Elections,High St Car Park,4.8,J46,Other Expenses,7523,Automobile Parking Lots and Garages
24/02/2023,MJ20,Civic & Mayoral Costs,Platinum Coach Hire Ltd,400,G18,Vehicle Hire Charges,4121,Taxi Services
24/02/2023,MA51,Democratic Services,Zoom.Us 888-799-9666,110.94,J46,Other Expenses,4814,Telecommunication Services
27/02/2023,LB80,Libraries-Replacement System,Contstant Contact,658,J46,Other Expenses,5968,Direct Marketing Continuity Subscription Merchants
27/02/2023,SVHM,Homelessness,Travelodge Gb0000,66.28,K77,Client Temporary Accommodation,3615,Travelodge
27/02/2023,LT80,Guildhall-Meetings & Events,Marks&spencer Plc,1.65,H31,Catering (non-taxable benefit),5411,Grocery Stores and Supermarkets
28/02/2023,MJ20,Civic & Mayoral Costs,Dvla Vehicle Tax,362.5,G10,Vehicle Servicing & Repairs,9311,Tax Payments
28/02/2023,SVHM,Homelessness,Travelodge Gb0000,90.76,K77,Client Temporary Accommodation,3615,Travelodge
28/02/2023,LB18,Libraries-Maidenhead,Amznmktplace,89.99,H10,Equipment Purchase,5999,Miscellaneous and Specialty Retail Stores
28/02/2023,AK81,Postage - Rechargeable,Post Office Counter,40.15,H70,Postage,9402,Postal Services - Government Only
01/03/2023,AK81,Postage - Rechargeable,Post Office Counter,12.03,H70,Postage,9402,Postal Services - Government Only
01/03/2023,LR10,Braywick Nature Centre,Paypal *ao Retail,619,H10,Equipment Purchase,5732,Electronic Sales
01/03/2023,MB30,Planning Development Control,Land Registry Ecom Ccc,6,J46,Other Expenses,9399,Government Services
01/03/2023,ML15,Public Relations,Axate,2,A77,Professional Subscriptions,5968,Direct Marketing Continuity Subscription Merchants
01/03/2023,EC26,"Information, Advice and Support Service",Patreon* Membership,4.99,J11,Corporate Subscriptions,5815,"Digital Goods - Media, Books, Movies, Music"
02/03/2023,EC26,"Information, Advice and Support Service",Foreign Exchange Fee,0.14,J81,Bank Charges,,
02/03/2023,NA11,Town Hall- Operations,Www.Screwfix.Com,52.5,H10,Equipment Purchase,5211,Lumber & Building Materials Stores
02/03/2023,MB30,Planning Development Control,Land Registry Ecom Ccc,6,J46,Other Expenses,9399,Government Services
03/03/2023,AK81,Postage - Rechargeable,Post Office Counter,8.32,H70,Postage,9402,Postal Services - Government Only
04/03/2023,EC26,"Information, Advice and Support Service",Amazon.Co.Uk*1l3p869n4,18.41,H45,Stationery,5969,Other Direct Marketing-Other Direct Marketers
06/03/2023,SVHM,Homelessness,Timpson Ltd,10,K77,Client Temporary Accommodation,5999,Miscellaneous and Specialty Retail Stores
06/03/2023,LB18,Libraries-Maidenhead,Sp Caratech,49.99,H10,Equipment Purchase,5085,Other Industrial Supplies
07/03/2023,AK81,Postage - Rechargeable,Post Office Counter,11.74,H70,Postage,9402,Postal Services - Government Only
07/03/2023,MJ20,Civic & Mayoral Costs,Ascot Cars,20,G40,Staff Public Transport,4121,Taxi Services
07/03/2023,MJ20,Civic & Mayoral Costs,Ascot Cars,20,G40,Staff Public Transport,4121,Taxi Services
07/03/2023,MB30,Planning Development Control,Land Registry Ecom Ccc,6,J46,Other Expenses,9399,Government Services
07/03/2023,MB30,Planning Development Control,Land Registry Ecom Ccc,6,J46,Other Expenses,9399,Government Services
08/03/2023,SFRG,Social Fund Reform Grant,Currys Online,348,H16,Furniture,5732,Electronic Sales
08/03/2023,CA17,Delivery of IT Equipment,Flux It Hardware Ltd,491.94,Q62,Other IT Services (Capital Only),7372,"Computer Program, System Design"
08/03/2023,AK81,Postage - Rechargeable,Post Office Counter,10.68,H70,Postage,9402,Postal Services - Government Only
08/03/2023,AK81,Postage - Rechargeable,Stationeryu,403.77,H70,Postage,5943,"Office, School Supply, and Stationery Stores"
08/03/2023,SFRG,Social Fund Reform Grant,Www.Argos.Co.Uk,248.95,H16,Furniture,5311,Department Stores
09/03/2023,MB30,Planning Development Control,Land Registry Ecom Ccc,6,J46,Other Expenses,9399,Government Services
09/03/2023,MB30,Planning Development Control,Land Registry Ecom Ccc,6,J46,Other Expenses,9399,Government Services
09/03/2023,MB30,Planning Development Control,Land Registry Ecom Ccc,6,J46,Other Expenses,9399,Government Services
09/03/2023,MB30,Planning Development Control,Land Registry Ecom Ccc,6,J46,Other Expenses,9399,Government Services
09/03/2023,AK81,Postage - Rechargeable,Post Office Counter,22.22,H70,Postage,9402,Postal Services - Government Only
09/03/2023,MB30,Planning Development Control,Land Registry Ecom Ccc,6,J46,Other Expenses,9399,Government Services
09/03/2023,SVRS,Rough Sleepers,Currys Online,338,H10,Equipment Purchase,5732,Electronic Sales
10/03/2023,EC26,"Information, Advice and Support Service",Eig*constantcontact.Com,18,J11,Corporate Subscriptions,5968,Direct Marketing Continuity Subscription Merchants
10/03/2023,AK81,Postage - Rechargeable,Post Office Counter,16.77,H70,Postage,9402,Postal Services - Government Only
10/03/2023,MJ20,Civic & Mayoral Costs,Www.Ianjonesphoto.Co.U,35,J46,Other Expenses,7221,Photographic Studios
10/03/2023,SVHM,Homelessness,Travelodge Gb0000,132.56,K77,Client Temporary Accommodation,3615,Travelodge
11/03/2023,MJ20,Civic & Mayoral Costs,Tesco Stores 5528,18,H10,Equipment Purchase,5411,Grocery Stores and Supermarkets
11/03/2023,MB01,Centralised Stationery,Ryman 1084,82.98,H45,Stationery,5943,"Office, School Supply, and Stationery Stores"
13/03/2023,MJ20,Civic & Mayoral Costs,Sq *wycombe Wanderers Foo,276,J46,Other Expenses,7929,"Bands, Orchestras, and Miscellaneous Entertainers"
13/03/2023,MB01,Centralised Stationery,Stationeryu,85.8,H45,Stationery,5943,"Office, School Supply, and Stationery Stores"
13/03/2023,MB30,Planning Development Control,Land Registry Ecom Ccc,6,J46,Other Expenses,9399,Government Services
13/03/2023,MA51,Democratic Services,Sainsburys S/mkts,3.75,H10,Equipment Purchase,5411,Grocery Stores and Supermarkets
14/03/2023,LR10,Braywick Nature Centre,Www.Screwfix.Com,15.97,H10,Equipment Purchase,5211,Lumber & Building Materials Stores
14/03/2023,AK81,Postage - Rechargeable,Post Office Counter,27.3,H70,Postage,9402,Postal Services - Government Only
14/03/2023,ML15,Public Relations,Contstant Contact,169,A77,Professional Subscriptions,5968,Direct Marketing Continuity Subscription Merchants
14/03/2023,AK81,Postage - Rechargeable,Post Office Counter,44.8,H70,Postage,9402,Postal Services - Government Only
14/03/2023,EC6D,SEN Special School,Amznmktplace,160.44,H10,Equipment Purchase,5999,Miscellaneous and Specialty Retail Stores
15/03/2023,AK81,Postage - Rechargeable,Post Office Counter,19.46,H70,Postage,9402,Postal Services - Government Only
16/03/2023,MB30,Planning Development Control,Land Registry Ecom Ccc,6,J46,Other Expenses,9399,Government Services
16/03/2023,AJ22,S E Library Management System,Se Online Web,31.5,G40,Staff Public Transport,4112,Passenger Railways
17/03/2023,MB01,Centralised Stationery,Stationeryu,173.53,H45,Stationery,5943,"Office, School Supply, and Stationery Stores"
19/03/2023,LE10,Economic Development,Contest-App.Co,180,J46,Other Expenses,5045,"Computers, Computer Peripheral Equipment, Software"
20/03/2023,AJ22,S E Library Management System,Se Strood To,21.1,G40,Staff Public Transport,4112,Passenger Railways
20/03/2023,AK81,Postage - Rechargeable,Post Office Counter,16.8,H70,Postage,9402,Postal Services - Government Only
20/03/2023,MB01,Centralised Stationery,Amznmktplace,16.83,H10,Equipment Purchase,5999,Miscellaneous and Specialty Retail Stores
20/03/2023,LR10,Braywick Nature Centre,Www.Screwfix.Com,32.99,H10,Equipment Purchase,5211,Lumber & Building Materials Stores
21/03/2023,LB18,Libraries-Maidenhead,4255.7467.5658,"1,256.76",J46,Other Expenses,2741,Miscellaneous Publishing and Printing
21/03/2023,AK81,Postage - Rechargeable,Post Office Counter,24.54,H70,Postage,9402,Postal Services - Government Only
22/03/2023,MC36,Pensions Administration,Marks&spencer Plc,50,H10,Equipment Purchase,5411,Grocery Stores and Supermarkets
22/03/2023,SVRT,Disabled Facilites Grant (Revenue),Estimators Online: Upl,164.16,F61,Service Charges,8999,Professional Services
22/03/2023,EC37,PPS Independent Support,Amznmktplace,13.49,H45,Stationery,5999,Miscellaneous and Specialty Retail Stores
22/03/2023,MA52,Elections,Amznmktplace,27.11,H10,Equipment Purchase,5999,Miscellaneous and Specialty Retail Stores
22/03/2023,MC36,Pensions Administration,Wilko Retail Limited,6,H10,Equipment Purchase,5399,Miscellaneous General Merchandise
22/03/2023,AK81,Postage - Rechargeable,Post Office Counter,9.4,H70,Postage,9402,Postal Services - Government Only
23/03/2023,MJ20,Civic & Mayoral Costs,Post Office Counter,7.65,H70,Postage,9402,Postal Services - Government Only
23/03/2023,MJ20,Civic & Mayoral Costs,Laithwaites Wine,442.56,J46,Other Expenses,5921,"Package Stores, Beer, Wine, Liquor"
23/03/2023,AJ22,S E Library Management System,Se Strood To,65,G40,Staff Public Transport,4112,Passenger Railways
23/03/2023,MT10,Legal Services,Post Office Counter,6.9,H70,Postage,9402,Postal Services - Government Only
23/03/2023,LE10,Economic Development,Gambling Commission,300,J46,Other Expenses,9399,Government Services
24/03/2023,MB30,Planning Development Control,Land Registry Ecom Ccc,6,J46,Other Expenses,9399,Government Services
24/03/2023,MJ20,Civic & Mayoral Costs,Tesco Stores 2668,120,J46,Other Expenses,5411,Grocery Stores and Supermarkets
24/03/2023,LR10,Braywick Nature Centre,Ikea Ltd Shop Online,"2,790.00",H10,Equipment Purchase,5712,"Equipment, Furniture, and Home Furnishings Stores "
24/03/2023,MA51,Democratic Services,Zoom.Us 888-799-9666,116.94,H92,Software,4814,Telecommunication Services
25/03/2023,EC6D,SEN Special School,Amznmktplace,137.94,H10,Equipment Purchase,5999,Miscellaneous and Specialty Retail Stores
27/03/2023,LR10,Braywick Nature Centre,Homebase Ltd,11.25,H10,Equipment Purchase,5200,Home Supply Warehouse Stores
27/03/2023,MY74,Learning and Development,Get Licensed,239.99,A70,Training - Non-Taxable Benefit,7392,"Consulting, Management, and PR Services"
27/03/2023,LR10,Braywick Nature Centre,Homebase Ltd,32,H10,Equipment Purchase,5200,Home Supply Warehouse Stores
27/03/2023,MB30,Planning Development Control,Land Registry Ecom Ccc,6,J46,Other Expenses,9399,Government Services
27/03/2023,MY74,Learning and Development,Eb *improving How The,20,A70,Training - Non-Taxable Benefit,7399,Other Business Services
27/03/2023,LB18,Libraries-Maidenhead,Amznmktplace,498,H10,Equipment Purchase,5999,Miscellaneous and Specialty Retail Stores
27/03/2023,AK81,Postage - Rechargeable,Post Office Counter,30.64,H70,Postage,9402,Postal Services - Government Only
28/03/2023,MY74,Learning and Development,Get Licensed,189.99,A70,Training - Non-Taxable Benefit,7392,"Consulting, Management, and PR Services"
28/03/2023,SFRG,Social Fund Reform Grant,Currys Online,358,H16,Furniture,5732,Electronic Sales
28/03/2023,MC36,Pensions Administration,Gwr Maidenhead To,9.6,G39,Client Public Transport,4112,Passenger Railways
28/03/2023,SFRG,Social Fund Reform Grant,Www.Argos.Co.Uk,373.95,H16,Furniture,5311,Department Stores
29/03/2023,MY74,Learning and Development,Get Licensed,219.99,A70,Training - Non-Taxable Benefit,7392,"Consulting, Management, and PR Services"
29/03/2023,MA69,Facilities Management,Proark UK Hotels Ltd Oper,604.14,J46,Other Expenses,7011,"Hotels, Motels, Resorts"
29/03/2023,LB70,Libraries-Stock Fund,Amznmktplace,68.91,J55,Book Stock Fund,5999,Miscellaneous and Specialty Retail Stores
29/03/2023,AK81,Postage - Rechargeable,Post Office Counter,32.45,H70,Postage,9402,Postal Services - Government Only
29/03/2023,MT49,Community Warden Scheme,Amznmktplace,49.99,H10,Equipment Purchase,5999,Miscellaneous and Specialty Retail Stores
29/03/2023,MT49,Community Warden Scheme,Sp Patrolstore,61.98,H10,Equipment Purchase,5399,Miscellaneous General Merchandise
30/03/2023,AK81,Postage - Rechargeable,Post Office Counter,13.82,H70,Postage,9402,Postal Services - Government Only
30/03/2023,MB30,Planning Development Control,Land Registry Ecom Ccc,6,J46,Other Expenses,9399,Government Services
30/03/2023,EC26,"Information, Advice and Support Service",Sainsburys S/mkts,7.89,H35,Refreshments,5411,Grocery Stores and Supermarkets
30/03/2023,MA69,Facilities Management,Seton,30.29,J01,Clothing & Uniforms,5099,Other Durable Goods
30/03/2023,MA69,Facilities Management,Seton,30.32,J01,Clothing & Uniforms,5099,Other Durable Goods
30/03/2023,SVHM,Homelessness,Travelodge Gb0000,39.76,K77,Client Temporary Accommodation,3615,Travelodge
30/03/2023,MB30,Planning Development Control,Land Registry Ecom Ccc,6,J46,Other Expenses,9399,Government Services
30/03/2023,MT10,Legal Services,Post Office Counter,6.9,H70,Postage,9402,Postal Services - Government Only
31/03/2023,MB30,Planning Development Control,Land Registry Ecom Ccc,6,J46,Other Expenses,9399,Government Services
31/03/2023,MC36,Pensions Administration,Gwr Maidenhead To,5.4,G39,Client Public Transport,4112,Passenger Railways
31/03/2023,MB30,Planning Development Control,Land Registry Ecom Ccc,6,J46,Other Expenses,9399,Government Services
31/03/2023,MB30,Planning Development Control,Land Registry Ecom Ccc,6,J46,Other Expenses,9399,Government Services
01/04/2023,EC26,"Information, Advice and Support Service",Patreon* Membership,4.87,J11,Corporate Subscriptions,5815,"Digital Goods - Media, Books, Movies, Music"
01/04/2023,ML15,Public Relations,Axate,2,A77,Professional Subscriptions,5968,Direct Marketing Continuity Subscription Merchants
03/04/2023,EC26,"Information, Advice and Support Service",Foreign Exchange Fee,0.13,J81,Bank Charges,,
,,,,"169,517.63",,,,
